Cogmind - Beta 11 X7 @@@ ROGUE MODE // 2021.09.13 @ 02:09:13 Player: Runia Result: Destroyed by S-43 Plague with Heavy Machine Gun Performance ------------- Evolutions (9) 4500 Regions Visited (35) 7000 Robots Destroyed (346) 1730 Value Destroyed (13218) 13218 Prototype IDs (85) 1700 Alien Tech Used (0) 0 Bonus (9205) 9205 TOTAL SCORE: 37353 Bonus ------- High Alert Combat Kills 1707 Follower Combat Kills 3295 Met Data Miner 300 Destroyed Z-Imprinter 1000 Met Zhirov 300 Met Warlord at Base 500 MAIN.C Attacked Warlord 500 Built Enhanced Grunts 300 A7 Reached Mainframe 300 Met R17 at Research 2000 Friendly Fire -997 Cogmind --------- Core Integrity 0/1600 Matter 28/300 Energy 59/100 System Corruption 29% Temperature Cool (-12) Movement Walking (120) Location -1/Command Parts ------- > --- POWER (3) -------- (None) > --- PROPULSION (6) --- Centrium Leg > --- UTILITY (12) ----- Advanced Cryofiber Web Spectral Analyzer Advanced Core Analyzer Advanced Hacking Suite > --- WEAPON (4) ------- Improved KE Penetrator Improved KE Penetrator Compact Mass Driver > --- INVENTORY (5) ---- (None) Peak State ------------ > --- POWER ------------ Particle Reactor Quantum Reactor Light Quantum Reactor > --- PROPULSION ------- Centrium Leg Centrium Leg Centrium Leg Centrium Leg Centrium Leg Centrium Leg > --- UTILITY ---------- Advanced Heat Sink Advanced Heat Sink Advanced Heat Sink Advanced Heat Sink Improved Coolant Injector Huge Storage Unit Advanced Energy Well Spectral Analyzer Reaction Control System Heavy Armor Plating Advanced Hacking Suite > --- WEAPON ----------- Quantum Rifle Heavy Neutron Cannon Enhanced Nova Cannon Improved KE Penetrator > --- INVENTORY -------- Particle Reactor Biometal Medium Treads Biometal Medium Treads Biometal Medium Treads Biometal Medium Treads Biometal Medium Treads Biometal Medium Treads Advanced Heavy Siege Treads Myomer Leg Myomer Leg Myomer Leg Centrium Leg Heavy Armor Plating Antimissile System Heavy Neutron Cannon Heavy Neutron Cannon Improved KE Penetrator Improved KE Penetrator Improved KE Penetrator Compact Mass Driver Fusion Bomb Launcher CR-A16's Behemoth Slayer [Rating: 193] Favorites ----------- Power Particle Reactor Engine Heavy Ion Engine Power Core Fission Core Reactor Particle Reactor Propulsion Myomer Leg Treads Heavy Treads Leg Myomer Leg Wheel Wheel Hover Unit Zionite Glidesys I Flight Unit Biomechanical Wings Utility Large Storage Unit Device Experimental Sensor Array Storage Large Storage Unit Processor Experimental Signal Interpreter Hackware Advanced Hacking Suite Protection Centrium Medium Armor Plating Weapon Precision Beam Rifle Energy Gun Precision Beam Rifle Energy Cannon Plasma Cannon Ballistic Gun Improved KE Penetrator Ballistic Cannon Bore Cannon Launcher Grenade Launcher Special Weapon Enhanced Flamer Impact Weapon Shock Maul Slashing Weapon Great Axe Piercing Weapon CR-A16's Behemoth Slayer Special Melee Weapon Dirty Datajack Build | -11 -10 -10 -9 -9 -9 -8 -8 -7 -7 -7 -7 -7 -7 -7 -6 -6 -6 -6 -6 -5 -5 -5 -5 -5 -4 -4 -4 -4 -4 -4 -3 -3 -2 -1 -1 ------- Run | Scr Mat Min Mat Min Exi Min Mat Fac Was Fac Low Low Zio Dee Pro Fac Low Low Dat Pro Fac Upp Upp War Pro Fac Ext Cet Arc Hub Res Tes Res Acc Com Slots Evolved 18 | . . . 2 . . . 2 2 . . . . . . . 2 . . . . 2 . . . . 2 . . . . 2 . 2 2 . Power 2 | . . . . . . . . . . . . . . . . . . . . . . . . . . 1 . . . . . . . 1 . Propulsion 4 | . . . 1 . . . 1 . . . . . . . . 1 . . . . . . . . . . . . . . 1 . . . . Utility 10 | . . . 1 . . . . 2 . . . . . . . 1 . . . . 2 . . . . 1 . . . . 1 . 2 . . Weapon 2 | . . . . . . . 1 . . . . . . . . . . . . . . . . . . . . . . . . . . 1 . Parts Attached 594 | . 21 14 29 2 2 7 46 24 8 15 13 14 20 32 5 24 16 5 . 6 15 1 6 7 . 12 23 15 . 36 66 15 40 46 9 Power 51 | . 3 2 3 . . . 1 1 1 2 . . 1 1 . . 1 2 . 2 1 . . . . . 2 . . 2 7 2 3 13 1 Engine 16 | . 3 2 3 . . . 1 1 . 2 . . 1 . . . 1 . . 1 . . . . . . 1 . . . . . . . . Core 4 | . . . . . . . . . . . . . . . . . . 2 . 1 1 . . . . . . . . . . . . . . Reactor 31 | . . . . . . . . . 1 . . . . 1 . . . . . . . . . . . . 1 . . 2 7 2 3 13 1 Propulsion 125 | . 6 4 7 1 1 3 11 1 2 1 . . 2 11 1 5 . . . . 8 . . 3 . . 9 5 . 9 10 2 11 12 . Treads 26 | . . . 1 . . . 2 . 2 . . . 2 2 . . . . . . . . . . . . 2 1 . . 3 1 1 9 . Leg 69 | . 6 2 4 . . 3 7 . . . . . . 1 . 5 . . . . 2 . . . . . 6 4 . 9 6 1 10 3 . Wheel 9 | . . 2 2 1 1 . . 1 . 1 . . . . . . . . . . . . . . . . . . . . 1 . . . . Hover 14 | . . . . . . . 1 . . . . . . 8 1 . . . . . 2 . . 1 . . 1 . . . . . . . . Flight 7 | . . . . . . . 1 . . . . . . . . . . . . . 4 . . 2 . . . . . . . . . . . Utility 211 | . 4 4 2 . . 2 8 12 2 7 10 8 10 14 4 12 13 3 . 3 4 1 2 4 . 6 4 5 . 14 23 5 15 8 2 Device 110 | . . 1 2 . . 1 3 7 2 2 7 4 3 3 4 6 10 2 . 3 1 . 2 3 . 4 2 1 . 6 18 2 7 3 1 Storage 26 | . 1 2 . . . 1 1 . . 1 . . 1 3 . 5 2 1 . . . . . . . 1 1 1 . . 2 . 2 1 . Processor 21 | . 1 . . . . . . 1 . 1 . 1 6 . . . . . . . 3 1 . 1 . . . . . 1 . . 1 3 1 Hackware 5 | . 1 . . . . . . 1 . . . . . . . 1 . . . . . . . . . . . . . . . 1 1 . . Protection 49 | . 1 1 . . . . 4 3 . 3 3 3 . 8 . . 1 . . . . . . . . 1 1 3 . 7 3 2 4 1 . Artifact . | . . . . . . . . . . . . . . . . . . . . . . . . . . . . . . . . . . . . Weapon 207 | . 8 4 17 1 1 2 26 10 3 5 3 6 7 6 . 7 2 . . 1 2 . 4 . . 6 8 5 . 11 26 6 11 13 6 Energy Gun 67 | . 5 1 4 1 1 1 12 3 1 3 1 . 2 3 . 4 . . . . 2 . 1 . . . 1 4 . 6 6 2 . 1 2 Energy Cannon 40 | . . . 2 . . . 3 3 1 1 1 2 2 2 . 1 1 . . . . . . . . 3 1 . . 2 5 . 1 8 1 Ballistic Gun 18 | . 1 1 4 . . . 1 1 . . . . . . . . . . . 1 . . . . . . . . . . 2 . 4 1 2 Ballistic Cannon 4 | . . . . . . . . . . . . . . . . . . . . . . . . . . . 2 . . . . . 1 . 1 Launcher 33 | . . 2 5 . . 1 5 . 1 1 . 1 . 1 . 1 . . . . . . . . . . 1 1 . 3 5 2 1 2 . Special Weapon 4 | . . . . . . . 4 . . . . . . . . . . . . . . . . . . . . . . . . . . . . Impact Weapon 3 | . . . . . . . . . . . . . . . . . . . . . . . . . . . . . . . 3 . . . . Slashing Weapon 16 | . 2 . 2 . . . 1 3 . . 1 3 2 . . . . . . . . . . . . . 2 . . . . . . . . Piercing Weapon 16 | . . . . . . . . . . . . . 1 . . 1 1 . . . . . 1 . . . . . . . 5 2 4 1 . Special Melee Weapon 6 | . . . . . . . . . . . . . . . . . . . . . . . 2 . . 3 1 . . . . . . . . Unidentified Prototypes 58 | . . 1 4 . 1 . 4 3 . 1 . 1 5 12 . 2 . . . . . . . 5 . 2 1 4 . 2 4 4 2 . . Corrupted Parts 1 | . . 1 . . . . . . . . . . . . . . . . . . . . . . . . . . . . . . . . . System Corruption 6 | . . 6 . . . . . . . . . . . . . . . . . . . . . . . . . . . . . . . . . Parts Lost 136 | . . 9 5 2 . . 4 1 2 1 . 2 . 5 1 . 4 . . . . 1 . . . . 4 1 . 15 13 14 9 39 4 Power 21 | . . 2 . . . . . 1 . . . . . . . . 1 . . . . . . . . . 1 . . 2 1 3 1 9 . Propulsion 40 | . . 2 3 1 . . 3 . . . . . . 1 1 . 1 . . . . . . . . . . . . 2 6 5 1 12 2 Utility 43 | . . 2 . . . . . . 2 . . 1 . 2 . . 1 . . . . 1 . . . . 3 1 . 6 4 2 7 11 . Weapon 32 | . . 3 2 1 . . 1 . . 1 . 1 . 2 . . 1 . . . . . . . . . . . . 5 2 4 . 7 2 Highest Loss Streak 26 | . . 7 2 2 . . 1 1 2 1 . 2 . 4 1 . 3 . . . . 1 . . . . 3 1 . 9 5 8 5 26 4 Average Slot Usage (%) 87 | . 99 85 97 91 81 87 93 97 84 83 84 83 80 89 93 98 87 88 93 92 93 92 95 99 100 93 80 90 94 89 90 74 66 83 41 Engine 4 | . 14 10 11 11 11 11 9 6 1 2 7 7 6 3 . . . . . . . . . . . . . . . . . . . . . Reactor 2 | . . . . . . . . . 5 4 . . . 3 7 6 . . . . . . . . . . 3 5 5 5 8 7 6 10 3 Treads 3 | . . . . . . . 8 7 9 9 7 7 7 6 . . . . . . . . . . . . 3 . . . 1 9 . . 3 Leg 15 | . 28 19 18 16 11 29 26 17 8 . . . . . . 19 27 26 26 26 11 . . . . . 6 25 26 25 20 . 16 22 7 Wheel 2 | . . 8 12 8 11 3 . 4 . 5 7 7 4 . . . . . . . . . . . . . . . . . 1 3 . . . Hover 1 | . . . . . . . . . . . . . . 16 24 11 . . . . 4 5 5 5 5 5 2 . . . . . . . . Flight 1 | . . . . . . . . . . . . . . . . . . . . . 8 23 23 22 23 21 8 . . . . . . . . Device 12 | . . 11 21 22 22 13 9 12 25 23 11 13 11 1 14 9 14 12 13 12 10 9 9 11 11 10 5 10 10 11 15 11 14 12 1 Storage 9 | . 14 14 11 11 11 19 9 7 1 1 7 7 6 6 7 9 9 13 13 13 11 11 11 11 11 10 10 9 10 6 10 13 5 5 . Processor 10 | . 3 . . . . . . 7 7 10 15 13 17 20 15 13 13 13 13 13 22 23 23 23 23 21 18 15 15 20 14 14 6 10 7 Protection 3 | . 9 2 . . . . 8 6 . 1 2 2 . 5 . . . . . . . . . . . 3 5 6 10 4 3 . 4 1 . Energy Gun 7 | . 11 2 4 18 15 11 16 14 12 14 15 9 6 6 15 11 6 6 6 3 1 5 2 . . . 1 10 15 12 2 2 . 1 3 Energy Cannon 3 | . . . 10 3 . . 3 5 2 7 3 6 6 8 7 5 5 6 6 6 3 . . . . . 1 4 . . 4 . 1 7 3 Ballistic Gun 1 | . 14 5 4 . . . . . . . . . . . . . . . . 2 3 . . . . . . . . . 1 2 6 5 7 Slashing Weapon 1 | . 2 . 1 . . . . 1 4 . 3 4 6 4 . . . . . . . . . . . . 3 . . . . . . . . Piercing Weapon 1 | . . . . . . . . . . . . . . . . 1 5 6 6 6 5 5 4 5 5 5 2 . . . . 1 1 . . Naked Turns . | . . . . . . . . . . . . . . . . . . . . . . . . . . . . . . . . . . . . Heaviest Build 197 | 12 26 36 39 39 40 41 46 58 48 42 38 43 33 45 39 39 43 40 40 44 40 23 24 24 24 26 104 101 91 95 121 112 170 197 62 Greatest Support 185 | 20 20 20 36 33 13 35 42 35 140 140 28 28 90 90 58 82 82 62 62 62 62 24 24 32 28 37 90 126 126 131 153 175 180 185 55 Greatest Overweight (x) 7 | . 1 2 2 2 3 4 1 4 3 1 1 1 7 2 . . . . . . 1 . . 1 . . 1 1 . . 2 6 6 1 1 Average Overweight (x) . | . . 1 1 1 2 1 1 2 . . . . . . . . . . . . . . . . . . . . . . . . . . . Largest Inventory Capacity 35 | 8 10 15 15 15 15 15 15 15 15 8 8 8 8 8 8 10 10 35 10 10 10 10 10 10 10 10 15 15 15 15 15 15 25 25 5 Average Capacity 12 | 8 9 14 15 15 15 15 15 15 6 5 8 8 7 7 8 8 10 10 10 10 10 10 10 10 10 10 10 15 15 15 15 13 11 24 5 Most Carried 25 | 5 10 11 15 15 15 15 15 15 15 8 8 8 8 8 8 10 10 10 9 10 10 10 10 10 10 10 15 15 15 15 15 13 14 25 5 Average Carried 11 | 4 9 9 10 13 14 14 14 14 6 5 7 7 7 7 7 8 8 9 9 9 9 10 10 9 10 10 10 14 15 14 13 10 6 22 1 Final Capacity 25 | 8 10 15 15 15 15 15 15 15 5 8 8 8 8 8 8 10 10 10 10 10 10 10 10 10 10 10 15 15 15 15 15 5 25 5 5 Final Carried 15 | 5 10 10 14 15 15 15 15 15 5 8 7 8 8 8 7 10 9 9 9 10 10 10 10 10 10 10 15 15 15 11 12 5 14 5 . Class Distribution -------------------- 23% | Scavenger-Mutant 22% | Mutant 12% | Scavenger-Assassin 11% | Scavenger-Tank 11% | Scavenger-Skirmisher 4% | Scout 3% | Commander-Mutant 3% | Scavenger-Gunner Dominant Class ---------------- Mutant | -10/Materials Mutant | -10/Mines Mutant | -9/Materials Scavenger-Mutant | -9/Mines Mutant | -9/Exiles Mutant | -8/Mines Scavenger-Tank | -8/Materials Scavenger-Skirmisher | -7/Factory Scavenger-Skirmisher | -7/Waste Scavenger-Skirmisher | -7/Factory Scavenger-Skirmisher | -7/Lower Caves Scavenger-Mutant | -7/Lower Caves Scavenger-Mutant | -7/Zion Scavenger-Mutant | -7/Deep Caves Scavenger-Scout | -6/Proximity Caves Scavenger-Gunner | -6/Factory Scavenger-Assassin | -6/Lower Caves Scavenger-Assassin | -6/Lower Caves Scavenger-Assassin | -6/Data Miner Scavenger-Assassin | -5/Proximity Caves Scavenger-Assassin | -5/Factory Scout | -5/Upper Caves Scout | -5/Upper Caves Scout | -5/Warlord Scout | -4/Proximity Caves Scout | -4/Factory Commander-Mutant | -4/Extension Scavenger-Tank | -4/Cetus Scavenger-Tank | -4/Archives Scavenger-Tank | -4/Hub_04(d) Scavenger-Skirmisher | -3/Research Scavenger-Mutant | -3/Testing Scavenger-Mutant | -2/Research Generator-Mutant | -1/Access Mutant | -1/Command Resources | -11 -10 -10 -9 -9 -9 -8 -8 -7 -7 -7 -7 -7 -7 -7 -6 -6 -6 -6 -6 -5 -5 -5 -5 -5 -4 -4 -4 -4 -4 -4 -3 -3 -2 -1 -1 ----------- Run | Scr Mat Min Mat Min Exi Min Mat Fac Was Fac Low Low Zio Dee Pro Fac Low Low Dat Pro Fac Upp Upp War Pro Fac Ext Cet Arc Hub Res Tes Res Acc Com Matter Collected 8401 | 215 403 559 462 63 75 81 661 215 115 309 101 379 241 287 23 310 233 50 . 50 12 158 20 . . 190 299 145 . 428 990 126 585 466 150 Remotely . | . . . . . . . . . . . . . . . . . . . . . . . . . . . . . . . . . . . . Salvage Created 16267 | 84 871 285 1241 146 . 63 2007 344 . 490 163 320 187 245 . 615 312 208 . 16 12 446 74 . . 235 1428 198 . 2249 1242 173 826 1534 253 Parts 772 | 4 68 11 72 5 . 15 130 27 . 22 3 12 4 14 . 24 11 1 . . 2 6 9 . . 7 50 7 . 84 52 13 35 73 11 Haulers Intercepted 18 | . 1 . 4 . . . 5 . . . . 1 . . . 1 . . . . . . . . . 1 2 . . 1 1 . . 1 . Recyclers Shooed 9 | . 1 1 . . . . . . . 1 . . . . . 1 . . . . . . . . . . . . . 1 1 1 . . 2 Parts Field Recycled . | . . . . . . . . . . . . . . . . . . . . . . . . . . . . . . . . . . . . Retrieved Matter . | . . . . . . . . . . . . . . . . . . . . . . . . . . . . . . . . . . . . Parts Self-Destructed 57 | . . . . . . . . . . . 3 10 3 . 2 . 16 7 . 1 . 5 9 1 . . . . . . . . . . . Prevented 6 | . . . . . . . . . . . . . . . . . . . . . . . . 6 . . . . . . . . . . . Kills | -11 -10 -10 -9 -9 -9 -8 -8 -7 -7 -7 -7 -7 -7 -7 -6 -6 -6 -6 -6 -5 -5 -5 -5 -5 -4 -4 -4 -4 -4 -4 -3 -3 -2 -1 -1 ------- Run | Scr Mat Min Mat Min Exi Min Mat Fac Was Fac Low Low Zio Dee Pro Fac Low Low Dat Pro Fac Upp Upp War Pro Fac Ext Cet Arc Hub Res Tes Res Acc Com Combat Hostiles Destroyed 252 | . 24 10 33 3 . 7 38 4 . 8 3 8 . 6 . 6 4 . . . . 1 1 . . 1 7 3 . 24 24 2 14 17 4 Melee 19 | . 4 . 1 . . . . . . . . . . . . . 2 . . . . . . . . 1 4 . . . . 1 6 . . Guns 89 | . 20 4 4 1 . 3 26 . . 1 1 1 . 1 . 3 1 . . . . . . . . . . . . 9 4 . 1 5 4 Cannons 36 | . . . 6 1 . . 3 4 . 3 1 1 . 2 . . 1 . . . . . . . . . . 3 . 2 2 . 1 6 . AOE 77 | . . 6 16 . . 4 9 . . 2 . 4 . 3 . 3 . . . . . . . . . . 1 . . 6 13 1 5 4 . Classes Destroyed 23 | 2 6 1 4 . . . 2 1 . . 1 . . 1 . . 1 1 . . . . . . . . . . . 1 2 . . . . Worker 26 | . 1 . 1 1 . . 6 4 . 1 . . . . . . . . . . . . . . . . . . . 1 6 1 . 4 . Builder 15 | . 1 . 1 . . . 3 1 . 1 . . . . . . . . . . 1 . . . . . . . . 2 . 2 . 3 . Tunneler 3 | 1 . 1 1 . . . . . . . . . . . . . . . . . . . . . . . . . . . . . . . . Hauler 18 | . 1 . 4 . . . 5 . . . . 1 . . . 1 . . . . . . . . . 1 2 . . 1 1 . . 1 . Recycler 17 | 1 1 1 . . . . . 1 . 1 . . . . . 2 . . . . . . . . . . 4 . . 2 1 1 . 1 1 Mechanic 2 | . . . . . . . 1 . . . . . . . . 1 . . . . . . . . . . . . . . . . . . . Operator 2 | . 1 . 1 . . . . . . . . . . . . . . . . . . . . . . . . . . . . . . . . Watcher 12 | . . . 2 . . . 4 1 . . . . . . . . . . . . . . . . . 1 . . . 2 2 . . . . Swarmer 68 | . 9 3 14 . . 7 11 3 . . . . . . . 4 . . . . . . . . . . . . . . 6 . 5 4 2 Grunt 85 | . 15 4 9 3 . . 17 . . 3 . 8 . . . 2 2 . . . . . . . . . 3 . . 7 7 . 5 . . Brawler 3 | . . . 1 . . . 1 . . . . . . . . . . . . . . . . . . . . . . 1 . . . . . Duelist 6 | . . . 1 . . . 1 . . 1 . . . . . . 1 . . . . . . . . . . . . 2 . . . . . Sentry 30 | . . . 8 . . . 7 . . 2 . . . . . . . . . . . . . . . 1 2 . . 3 2 . 3 2 . Demolisher 1 | . . . . . . . . . . . . . . . . . . . . . . . . . . . . . . . 1 . . . . Specialist 1 | . . . . . . . . . . . 1 . . . . . . . . . . . . . . . . . . . . . . . . Hunter 18 | . . . . . . . 1 . . . 1 . . . . . . . . . . . . . . . . . . 8 2 . . 6 . Programmer 16 | . . . . . . . . 1 . 2 1 . . . . . . . . . . . . . . . . . . 2 2 2 . 4 2 Heavy 1 | . . . . . . . . . . . . . . . . . . . . . . . . . . . . . . 1 . . . . . Behemoth 8 | . . . . . . . . . . . . . . . . . 1 . . . . 1 1 . . . 2 . . . 1 . 1 1 . Cetus Guard 3 | . . . . . . . . . . . . . . . . . . . . . . . . . . . . 3 . . . . . . . Enhanced Grunt 1 | . . . . . . . . . . . . . . 1 . . . . . . . . . . . . . . . . . . . . . Striker 3 | . . . . . . . . . . . . . . . . . . . . . . . . . . . . . . . 3 . . . . Z-Technician 1 | . . . . . . . . . . . . . . 1 . . . . . . . . . . . . . . . . . . . . . Z-Light 3 | . . . . . . . . . . . . . . 3 . . . . . . . . . . . . . . . . . . . . . Decomposer 1 | . . . . . . . . . . . . . . . . . . . . 1 . . . . . . . . . . . . . . . Packrat 3 | . . . . . . . . . . . . . . . . . 1 . . . . 2 . . . . . . . . . . . . . Samaritan 1 | . . . . . . . . . . . . . . . . . . 1 . . . . . . . . . . . . . . . . . Assembled 4 | . . 2 . . . . . . . . . . . 2 . . . . . . . . . . . . . . . . . . . . . Thug 1 | . . . . . . . . . . 1 . . . . . . . . . . . . . . . . . . . . . . . . . Guerrilla 1 | . . . . . . . . . . . . . . . . . . . . . . . . . . . 1 . . . . . . . . Best Kill Streak 11 | 2 3 3 9 3 . 5 8 5 . 5 1 8 . 3 . 4 2 . . . 1 1 1 . . 2 2 2 . 9 11 5 5 6 2 Combat Bots Only 8 | . 3 3 5 3 . 5 7 3 . 4 1 8 . 3 . 4 2 . . . . 1 1 . . 1 2 2 . 6 5 1 5 4 2 Max Kills in Single Turn 7 | 1 2 1 4 1 . 2 3 2 . 2 1 3 . 2 . 1 1 1 . 1 1 1 1 . . 1 1 1 . 2 7 5 3 4 1 Gunslinging . | . . . . . . . . . . . . . . . . . . . . . . . . . . . . . . . . . . . . Exploded 4 | . . 1 3 . . 2 2 . . 2 . 3 . 2 . 1 . . . . . . . . . . 1 . . 2 3 1 3 4 . Melee 1 | . 1 . 1 . . . . . . . . . . . . . 1 . . . . . . . . 1 1 . . . . 1 1 . . Uniques/NPCs Destroyed 2 | . . 1 . . . . . . . . . . . 1 . . . . . . . . . . . . . . . . . . . . . YI-UF0 (-10/Mines) Z-Imprinter (-7/Deep Caves) Combat | -11 -10 -10 -9 -9 -9 -8 -8 -7 -7 -7 -7 -7 -7 -7 -6 -6 -6 -6 -6 -5 -5 -5 -5 -5 -4 -4 -4 -4 -4 -4 -3 -3 -2 -1 -1 -------- Run | Scr Mat Min Mat Min Exi Min Mat Fac Was Fac Low Low Zio Dee Pro Fac Low Low Dat Pro Fac Upp Upp War Pro Fac Ext Cet Arc Hub Res Tes Res Acc Com Damage Taken 34414 | . 593 1093 1122 209 . 92 955 354 99 682 236 231 . 1193 118 297 819 . . 299 . 62 73 . . . 536 387 . 3378 4152 3036 3555 9598 1245 Core 5261 | . 106 96 167 108 . 30 116 15 45 98 28 51 . 89 . 19 87 . . 29 . . . . . . 123 13 . 310 326 802 981 1390 232 Absorbed by Shields 390 | . . . . . . . . . . . . . . . . . . . . . . . . . . . 220 170 . . . . . . . Reduced by Siege Mode 65 | . . . . . . . . . . . . . . . . . . . . . . . . . . . . . . . . 48 17 . . Core Remaining (%) 56 | 100 . 19 . . . 23 78 . . . . . . . 53 . . . . 84 . . . . 100 . . . . 61 . 13 32 . . Volleys Fired 720 | 5 57 41 69 11 . 3 90 26 5 22 10 25 . 32 3 19 16 3 . 4 3 . 8 . . 5 3 10 . 69 69 19 18 50 25 Largest 4 | 2 2 2 2 2 . 1 3 3 3 3 3 3 . 2 1 3 3 1 . 1 1 . 1 . . 1 2 3 . 3 3 2 3 4 3 Hottest 375 | 70 73 70 124 124 . 30 218 187 209 224 210 210 . 141 90 220 220 90 . 90 90 . 75 . . 50 165 245 . 249 204 75 190 375 145 Shots Fired 1421 | 10 113 62 120 20 2 11 225 39 14 55 29 46 . 40 3 39 24 3 . 4 3 . 8 . . 5 6 26 . 165 97 21 28 157 46 Gun 875 | 10 113 43 52 17 2 8 165 14 9 35 21 20 . 16 . 20 8 . . . . . 8 . . . 1 19 . 140 34 20 13 65 22 Cannon 413 | . . . 52 3 . . 29 25 5 16 8 20 . 17 3 12 16 3 . 4 3 . . . . 5 5 7 . 11 44 . 12 89 24 Launcher 111 | . . 19 16 . . 3 9 . . 4 . 6 . 7 . 7 . . . . . . . . . . . . . 14 19 1 3 3 . Special 22 | . . . . . . . 22 . . . . . . . . . . . . . . . . . . . . . . . . . . . . Kinetic 227 | 5 56 23 28 . . . . . . . . . . . . . . . . . . . . . . . 4 . . . 19 2 21 44 25 Thermal 972 | 5 57 . 76 20 2 8 216 39 14 47 29 40 . 33 3 23 24 3 . 4 3 . 8 . . . 2 26 . 140 15 . 4 110 21 Explosive 85 | . . 19 11 . . 3 9 . . 4 . 6 . 7 . . . . . . . . . . . . . . . . 19 1 3 3 . Electromagnetic 112 | . . 20 5 . . . . . . 4 . . . . . 7 . . . . . . . . . . . . . 19 39 18 . . . Entropic 16 | . . . . . . . . . . . . . . . . . . . . . . . . . . 5 . . . 6 5 . . . . Phasic 9 | . . . . . . . . . . . . . . . . 9 . . . . . . . . . . . . . . . . . . . Robot Hit Streak 25 | 3 25 8 9 5 3 5 13 8 7 15 12 12 . 7 . 12 5 . . . . . . . . . 4 11 . 17 10 7 3 11 10 Robot Miss Streak 8 | 1 5 4 3 1 . 2 5 6 1 2 2 1 . 8 . 1 1 . . . . . . . . . 2 2 . 6 3 2 3 5 5 Penetration Max 1 | . . . . . . . . . . . . . . . . . . . . . . . . . . . . . . . . . . 1 . Secondary Targets 1 | . 1 . . . . . . . . . . . . . . . . . . . . . . . . . . . . . . . . . . Max Gunslinging Chain 1 | . 1 . . . . . . . . . . . . . . . . . . . . . . . . . . . . . . . . . . Autonomous 89 | . . . . . 2 8 79 . . . . . . . . . . . . . . . . . . . . . . . . . . . . Shots Hit Robots 977 | 6 85 36 84 14 2 6 148 19 11 33 19 34 4 18 . 25 21 5 . 3 1 7 1 . . 11 40 16 . 113 63 15 33 79 25 Core Hits 609 | 3 37 22 49 5 . 7 84 13 2 21 5 18 3 25 . 19 10 4 . 2 1 5 . . . 5 25 6 . 69 55 26 30 46 12 Critical Kills 8 | . . . 2 . . . . . . . . 1 . . . . . . . . . . . . . . . . . . 1 . 1 2 1 Critical Parts Destroyed 7 | . . . 1 . . . . . . . . . . . . . . . . . . . . . . . 1 . . . . . . 4 1 Critical Strikes 58 | . 5 . 5 3 . . 4 . 1 1 . 1 . 1 . 1 2 . . . . 3 . . . 3 3 . . 6 2 . 8 7 2 Burn 22 | . 5 . 2 3 . . 4 . 1 1 . . . 1 . . 2 . . . . . . . . . . . . 3 . . . . . Meltdown 4 | . . . 2 . . . . . . . . 1 . . . . . . . . . . . . . . . . . . . . . 1 . Destroy 12 | . . . 1 . . . . . . . . . . . . . . . . . . . . . . . 1 . . . 1 . 1 6 2 Corrupt 1 | . . . . . . . . . . . . . . . . . . . . . . . . . . . . . . . 1 . . . . Puncture 15 | . . . . . . . . . . . . . . . . . . . . . . 3 . . . 3 2 . . . . . 7 . . Sunder 3 | . . . . . . . . . . . . . . . . . . . . . . . . . . . . . . 3 . . . . . Intensify 1 | . . . . . . . . . . . . . . . . 1 . . . . . . . . . . . . . . . . . . . Melee Attacks 199 | . 24 . 3 . . . . 9 3 . 1 4 4 8 . 2 9 5 . 5 9 7 5 4 . 16 39 . . . 7 8 26 1 . Impact 1 | . . . . . . . . . . . . . . . . . . . . . . . . . . . . . . . 1 . . . . Slashing 63 | . 24 . 3 . . . . 9 3 . 1 4 4 8 . . . . . . . . . . . . 7 . . . . . . . . Piercing 135 | . . . . . . . . . . . . . . . . 2 9 5 . 5 9 7 5 4 . 16 32 . . . 6 8 26 1 . Sneak Attacks 34 | . 3 . . . . . . 4 . . . . . . . 2 . 2 . 1 1 2 . . . 1 16 . . . 1 . 1 . . Combat Hostiles 5 | . . . . . . . . . . . . . . . . . . . . . . . . . . . 5 . . . . . . . . Follow-up Attacks . | . . . . . . . . . . . . . . . . . . . . . . . . . . . . . . . . . . . . Damage Inflicted 41557 | 78 1491 921 2733 222 58 504 3976 862 267 1112 391 1714 503 1330 . 970 649 499 . 169 72 637 . . . 613 2096 496 . 5040 5684 1286 2211 4093 880 Guns 12126 | 78 1032 347 608 160 58 150 2661 81 160 394 255 329 . 185 . 370 73 . . . . . . . . . 17 342 . 2600 629 30 116 1106 345 Cannons 7917 | . . . 690 62 . . 500 280 107 294 136 313 . 281 . 265 312 . . . . . . . . . 141 154 . 408 1138 . 257 2044 535 Explosions 14093 | . . 574 1390 . . 354 638 . . 424 . 1072 . 864 . 141 . . . . . . . . . . . . . 2018 3662 1083 1067 806 . Melee 6864 | . 459 . 45 . . . . 501 . . . . 503 . . 194 264 499 . 169 72 637 . . . 613 1938 . . . 142 101 727 . . Ramming 386 | . . . . . . . 6 . . . . . . . . . . . . . . . . . . . . . . 14 113 72 44 137 . Kinetic 2866 | 52 492 177 293 . . . . . . . . . . . . . . . . . . . . . . . 109 . . . 345 . 287 766 345 Thermal 15922 | 26 540 23 1074 222 58 150 3332 361 267 636 391 642 . 466 . 371 385 . . . . . . . . . 49 496 . 3035 359 34 86 2384 535 Explosive 11367 | . . 551 955 . . 354 638 . . 424 . 1072 . 864 . . . . . . . . . . . . . . . . 3587 1049 1067 806 . Electromagnetic 3447 | . . 170 366 . . . . . . 52 . . . . . 141 . . . . . . . . . . . . . 1696 992 30 . . . Impact . | . . . . . . . . . . . . . . . . . . . . . . . . . . . . . . . . . . . . Slashing 2228 | . 459 . 45 . . . . 501 . . . . 503 . . . . . . . . . . . . . 720 . . . . . . . . Piercing 4636 | . . . . . . . . . . . . . . . . 194 264 499 . 169 72 637 . . . 613 1218 . . . 142 101 727 . . Entropic 441 | . . . . . . . . . . . . . . . . . . . . . . . . . . . . . . 295 146 . . . . Phasic 264 | . . . . . . . . . . . . . . . . 264 . . . . . . . . . . . . . . . . . . . Highest Corruption 29 | . 3 9 6 6 6 6 . . 21 23 24 24 24 . . . . . . . . . . . . 1 1 1 1 8 2 9 . 24 29 Average Corruption 8 | . 2 7 4 6 6 6 . . 13 22 23 24 24 . . . . . . . . . . . . 1 1 1 1 1 1 5 . 5 24 Corruption Purged 2 | . . . . . . . . . . . . . . . . . . . . . . . . . . . . . . . 2 . . . . Effects 301 | . 12 35 12 23 18 32 . . 11 57 39 16 1 . . . . . . . . . . . . 1 11 1 . 2 . 1 . 14 15 Message Errors 84 | . 3 11 4 9 6 8 . . 2 8 11 6 . . . . . . . . . . . . . 1 8 1 . . . . . 4 2 Matter Fused 82 | . 2 9 4 4 7 5 . . 2 22 16 3 1 . . . . . . . . . . . . . . . . 1 . . . 3 3 Heat Flow Errors 28 | . 2 7 . 3 1 4 . . . 6 1 1 . . . . . . . . . . . . . . . . . . . . . 2 1 Energy Discharges 43 | . 3 4 1 2 1 7 . . 3 9 3 2 . . . . . . . . . . . . . . 3 . . . . 1 . 1 3 Parts Rejected 1 | . . . . . 1 . . . . . . . . . . . . . . . . . . . . . . . . . . . . . . Data Loss (minor) 31 | . 1 3 2 1 2 5 . . 2 5 3 2 . . . . . . . . . . . . . . . . . 1 . . . 1 3 Data Loss (major) 9 | . . . . 2 . 3 . . 1 2 . . . . . . . . . . . . . . . . . . . . . . . 1 . Misfires 8 | . . 1 . . . . . . . 1 2 1 . . . . . . . . . . . . . . . . . . . . . 1 2 Alerts 3 | . . . . . . . . . . 1 . 1 . . . . . . . . . . . . . . . . . . . . . . 1 Misdirections 1 | . . . . . . . . . . . . . . . . . . . . . . . . . . . . . . . . . . 1 . Weapon Failures 11 | . 1 . 1 2 . . . . 1 3 3 . . . . . . . . . . . . . . . . . . . . . . . . Overload Shots 1 | . . . . . . . . . . . . . . . . . . . . . . . . . . . . 1 . . . . . . . Overflow Damage 1346 | . 35 39 19 . . 24 4 77 . 25 . 16 54 11 . . 50 94 . . . 192 . . . 41 66 . . 10 300 . 116 118 55 Projectiles 248 | . . . . . . . . 3 . . . 2 . 1 . . 50 . . . . . . . . . . . . 10 49 . . 78 55 Explosions 530 | . . 39 19 . . 24 4 . . 25 . 14 . 10 . . . . . . . . . . . . . . . . 251 . 104 40 . Melee 568 | . 35 . . . . . . 74 . . . . 54 . . . . 94 . . . 192 . . . 41 66 . . . . . 12 . . Knockbacks 6 | . . . . . . . . . . . . . . . . . . . . . . . . . . . 1 . . . 3 1 . 1 . Impact 5 | . . . . . . . . . . . . . . . . . . . . . . . . . . . . . . . 3 1 . 1 . Kinetic 1 | . . . . . . . . . . . . . . . . . . . . . . . . . . . 1 . . . . . . . . Secondary . | . . . . . . . . . . . . . . . . . . . . . . . . . . . . . . . . . . . . Self-Inflicted Damage 1220 | . . 138 103 . . 12 . . . 32 . . . 35 . 6 . . . . . . . . . . . . . 92 485 72 46 199 . Shots 32 | . . 5 5 . . 1 . . . 1 . . . 1 . 1 . . . . . . . . . . . . . 4 8 1 2 3 . Rammed 33 | . . . . . . . . . . . . . . . . . . . . . . . . . . . . . . . 18 15 . . . Targets Rammed 42 | . . . . . . . 3 . . . . . . . . . . . . . . . . . . . . . . 2 18 15 1 3 . Kicked 9 | . . . . . . . 3 . . . . . . . . . . . . . . . . . . . . . . 2 . . 1 3 . Crushed . | . . . . . . . . . . . . . . . . . . . . . . . . . . . . . . . . . . . . Highest Temperature 461 | 36 288 176 2 126 72 266 424 111 . 216 253 234 . 384 186 387 368 48 . 32 52 . . . . 5 56 120 . 368 271 10 3 461 286 Average Temperature 99 | 16 74 79 2 56 39 128 55 32 . 46 103 114 . 112 90 167 129 26 . 19 27 . . . . 5 18 59 . 173 132 8 3 126 106 Received Heat Transfer 4260 | . 240 81 285 114 . . 342 . 27 168 . 144 . 333 30 27 201 . . 24 . 12 12 . . . 64 35 . 207 204 549 522 639 . Effects 11 | . . . . . . . . . . . . . . 1 . 1 2 . . . . . . . . . . . . 2 . . . 4 1 Shutdowns 4 | . . . . . . . . . . . . . . . . . . . . . . . . . . . . . . . . . . 4 . Energy Bleed 4 | . . . . . . . . . . . . . . 1 . . 1 . . . . . . . . . . . . 1 . . . . 1 Interference 1 | . . . . . . . . . . . . . . . . . . . . . . . . . . . . . . 1 . . . . . Short Circuit 2 | . . . . . . . . . . . . . . . . 1 1 . . . . . . . . . . . . . . . . . . Siege Activations 3 | . . . . . . . . . . . . . . . . . . . . . . . . . . . . . . . 1 1 1 . . Total Turns 19 | . . . . . . . . . . . . . . . . . . . . . . . . . . . . . . . 3 12 4 . . Longest Duration 12 | . . . . . . . . . . . . . . . . . . . . . . . . . . . . . . . 3 12 4 . . Robots Corrupted 12 | . . . 1 . . . . . . . . . . . . . . . . . . . . . . . . . . 7 4 . . . . Combat Hostiles 12 | . . . 1 . . . . . . . . . . . . . . . . . . . . . . . . . . 7 4 . . . . Parts Fried 22 | . . . 2 . . . . . . 1 . . . . . . . . . . . . . . . . . . . 11 8 . . . . Impact Corruptions . | . . . . . . . . . . . . . . . . . . . . . . . . . . . . . . . . . . . . Robots Melted 13 | . . . 5 1 . . . . . 2 1 3 . . . . . . . . . . . . . . . . . . . . . 1 . Combat Hostiles 12 | . . . 5 1 . . . . . 2 1 2 . . . . . . . . . . . . . . . . . . . . . 1 . Parts Melted 56 | . 3 . 9 1 . . 9 1 . 7 4 6 . . . . 1 . . . . . . . . . 1 1 . 11 . . . 2 . Heat Transferred 25668 | 74 1924 50 2222 740 74 185 6651 555 518 1240 768 1303 . 787 . 397 646 . . . . . . . . . 74 647 . 4087 420 50 74 1882 300 Parts Sabotaged . | . . . . . . . . . . . . . . . . . . . . . . . . . . . . . . . . . . . . Parts Stolen . | . . . . . . . . . . . . . . . . . . . . . . . . . . . . . . . . . . . . Parts Stripped . | . . . . . . . . . . . . . . . . . . . . . . . . . . . . . . . . . . . . Power Chain Reactions 7 | . . 1 2 . . . . . . . . . . . . . . . . . . . . . . . . . . 2 1 1 . . . Missiles Intercepted . | . . . . . . . . . . . . . . . . . . . . . . . . . . . . . . . . . . . . Alert | -11 -10 -10 -9 -9 -9 -8 -8 -7 -7 -7 -7 -7 -7 -7 -6 -6 -6 -6 -6 -5 -5 -5 -5 -5 -4 -4 -4 -4 -4 -4 -3 -3 -2 -1 -1 ------- Run | Scr Mat Min Mat Min Exi Min Mat Fac Was Fac Low Low Zio Dee Pro Fac Low Low Dat Pro Fac Upp Upp War Pro Fac Ext Cet Arc Hub Res Tes Res Acc Com Peak Influence 1192 | 10 432 199 796 361 . 202 715 317 37 554 . . . . . 182 . . . . 557 . . . . 187 1062 1192 431 617 761 599 501 695 512 Initial 594 | . 6 124 5 306 . . 20 296 37 . . . . . . 72 . . . . . . . . . 37 91 594 431 150 323 427 328 252 316 Average 326 | 6 185 66 443 264 . 41 398 173 5 167 . . . . . 84 . . . . 314 . . . . 83 441 886 431 402 507 478 384 464 344 Maximum Alert Level 4 | . 2 . 3 1 . 1 3 1 . 2 . . . . . . . . . . 2 . . . . . 3 4 2 2 3 2 2 2 2 Low Security (%) 35 | 100 58 100 16 39 . 87 26 64 100 64 . . . . . 100 . . . . 29 . . . . 100 14 . . 8 . . . . . Level 1 26 | . 35 . 26 60 . 12 16 35 . 25 . . . . . . . . . . . . . . . . 45 . . 40 13 . 67 31 86 Level 2 31 | . 5 . 42 . . . 49 . . 9 . . . . . . . . . . 70 . . . . . 17 17 100 50 77 100 32 68 13 Level 3 6 | . . . 14 . . . 7 . . . . . . . . . . . . . . . . . . . 21 80 . . 8 . . . . Level 4 . | . . . . . . . . . . . . . . . . . . . . . . . . . . . . 1 . . . . . . . Level 5 . | . . . . . . . . . . . . . . . . . . . . . . . . . . . . . . . . . . . . High Security . | . . . . . . . . . . . . . . . . . . . . . . . . . . . . . . . . . . . . Max Security . | . . . . . . . . . . . . . . . . . . . . . . . . . . . . . . . . . . . . Squads Dispatched 58 | . 8 . 4 . . . 7 1 . 4 . . . . 1 1 . . . . 4 . . . . 1 2 . . 7 6 3 1 7 1 Investigation 17 | . 4 . 1 . . . 1 . . 1 . . . . . . . . . . 2 . . . . 1 . . . 1 4 . 1 1 . Extermination 8 | . . . . . . . . 1 . 2 . . . . . . . . . . 1 . . . . . . . . 1 . 1 . 1 1 Reinforcement 25 | . 4 . 2 . . . 5 . . 1 . . . . . 1 . . . . . . . . . . 1 . . 4 2 2 . 3 . Assault 7 | . . . 1 . . . . . . . . . . . 1 . . . . . 1 . . . . . 1 . . 1 . . . 2 . Garrison 1 | . . . . . . . 1 . . . . . . . . . . . . . . . . . . . . . . . . . . . . Intercept . | . . . . . . . . . . . . . . . . . . . . . . . . . . . . . . . . . . . . Construction Impeded 4 | . . . . . . . 1 . . . . . . . . . . . . . . . . . . . . . . 2 . . . 1 . Haulers Reinforced 2 | . . . . . . . . . . . . . . . . 1 . . . . . . . . . . . . . . 1 . . . . Active Scanning Responses . | . . . . . . . . . . . . . . . . . . . . . . . . . . . . . . . . . . . . Cargo Convoy Interrupts 1 | . . . . . . . . . . 1 . . . . . . . . . . . . . . . . . . . . . . . . . Stealth | -11 -10 -10 -9 -9 -9 -8 -8 -7 -7 -7 -7 -7 -7 -7 -6 -6 -6 -6 -6 -5 -5 -5 -5 -5 -4 -4 -4 -4 -4 -4 -3 -3 -2 -1 -1 --------- Run | Scr Mat Min Mat Min Exi Min Mat Fac Was Fac Low Low Zio Dee Pro Fac Low Low Dat Pro Fac Upp Upp War Pro Fac Ext Cet Arc Hub Res Tes Res Acc Com Distress Signals 26 | . 1 1 3 . . . 6 . . . . . . . . . . . . . . . . . . 1 3 1 . 1 4 . 5 . . Communications Jammed 29 | . . . . . . . . . . 1 . . . . . . . . . . . . . . . . . . . 28 . . . . . Distress Signals 22 | . . . . . . . . . . 1 . . . . . . . . . . . . . . . . . . . 21 . . . . . Times Spotted 509 | . 42 15 51 3 . 10 55 8 4 14 3 10 . 13 9 9 5 . . 1 2 1 4 . 4 4 46 19 . 47 32 18 22 45 13 Peak Tracking Total 19 | . 4 3 8 3 . 7 4 3 1 4 2 5 . 5 6 4 4 . . 1 3 . 3 . 4 4 9 5 . 10 6 9 7 19 5 Tactical Retreats 30 | . 1 3 1 . . . . . . 1 . 2 . . 5 1 . . . . . . . . 2 1 1 . . 3 3 . 1 2 3 Traps | -11 -10 -10 -9 -9 -9 -8 -8 -7 -7 -7 -7 -7 -7 -7 -6 -6 -6 -6 -6 -5 -5 -5 -5 -5 -4 -4 -4 -4 -4 -4 -3 -3 -2 -1 -1 ------- Run | Scr Mat Min Mat Min Exi Min Mat Fac Was Fac Low Low Zio Dee Pro Fac Low Low Dat Pro Fac Upp Upp War Pro Fac Ext Cet Arc Hub Res Tes Res Acc Com Traps Triggered 15 | . 4 . 1 . . . 1 2 . 3 . . . . . . . . . . . . . . . . 1 . . . . . 1 2 . Indirectly . | . . . . . . . . . . . . . . . . . . . . . . . . . . . . . . . . . . . . Trap Hack Attempts . | . . . . . . . . . . . . . . . . . . . . . . . . . . . . . . . . . . . . Triggered . | . . . . . . . . . . . . . . . . . . . . . . . . . . . . . . . . . . . . Disarmed . | . . . . . . . . . . . . . . . . . . . . . . . . . . . . . . . . . . . . Reprogrammed . | . . . . . . . . . . . . . . . . . . . . . . . . . . . . . . . . . . . . Reused . | . . . . . . . . . . . . . . . . . . . . . . . . . . . . . . . . . . . . Traps Extracted . | . . . . . . . . . . . . . . . . . . . . . . . . . . . . . . . . . . . . Installed . | . . . . . . . . . . . . . . . . . . . . . . . . . . . . . . . . . . . . Triggered 5 | . . . . . . . . . . 1 . . . . . . . . . . . 1 . 3 . . . . . . . . . . . Machines | -11 -10 -10 -9 -9 -9 -8 -8 -7 -7 -7 -7 -7 -7 -7 -6 -6 -6 -6 -6 -5 -5 -5 -5 -5 -4 -4 -4 -4 -4 -4 -3 -3 -2 -1 -1 ---------- Run | Scr Mat Min Mat Min Exi Min Mat Fac Was Fac Low Low Zio Dee Pro Fac Low Low Dat Pro Fac Upp Upp War Pro Fac Ext Cet Arc Hub Res Tes Res Acc Com Machines Disabled 38 | . . 2 8 . . . 2 . . 5 1 . . 1 . 2 . . . 1 1 . . . . . . 1 . 4 2 5 . 3 . Max in Single Turn 2 | . . 2 2 . . . 1 . . . 1 . . 1 . 1 . . . 1 1 . . . . . . 1 . 1 1 1 . 1 . Garrison Access 5 | . . . . . . . 1 . . 1 . . . . . . . . . . 1 . . . . . . . . 1 . . . 1 . Machines Sabotaged . | . . . . . . . . . . . . . . . . . . . . . . . . . . . . . . . . . . . . Garrisons Compromised 1 | . . . . . . . . . . 1 . . . . . . . . . . . . . . . . . . . . . . . . . Overloaded Fab Kills . | . . . . . . . . . . . . . . . . . . . . . . . . . . . . . . . . . . . . Fab Network Shutdowns 1 | . . . . . . . . . . . . . . . . . . . . . 1 . . . . . . . . . . . . . . Hacking | -11 -10 -10 -9 -9 -9 -8 -8 -7 -7 -7 -7 -7 -7 -7 -6 -6 -6 -6 -6 -5 -5 -5 -5 -5 -4 -4 -4 -4 -4 -4 -3 -3 -2 -1 -1 --------- Run | Scr Mat Min Mat Min Exi Min Mat Fac Was Fac Low Low Zio Dee Pro Fac Low Low Dat Pro Fac Upp Upp War Pro Fac Ext Cet Arc Hub Res Tes Res Acc Com Machines Accessed 79 | . 6 . 5 . 1 . 7 4 . 7 . 2 . . . 5 . 2 4 . 7 . 1 5 . 3 5 1 . 5 5 1 . 3 . Terminals 44 | . 4 . 4 . . . 5 3 . 4 . . . . . 2 . . . . 5 . . . . 1 5 1 . 4 3 1 . 2 . Fabricators 4 | . . . . . . . . . . 1 . . . . . 1 . . . . 1 . . . . . . . . . 1 . . . . Repair Stations 5 | . . . 1 . . . 1 . . 1 . . . . . 1 . . . . . . . . . 1 . . . . . . . . . Recycling Units 4 | . 2 . . . . . . . . . . . . . . 1 . . . . . . . . . 1 . . . . . . . . . Scanalyzers 1 | . . . . . . . . 1 . . . . . . . . . . . . . . . . . . . . . . . . . . . Garrison Access 6 | . . . . . . . 1 . . 1 . . . . . . . . . . 1 . . . . . . . . 1 1 . . 1 . Total Hacks 190 | . 11 . 16 . 3 . 16 8 . 15 . 2 . . . 13 . 2 26 . 17 . 1 15 . 4 12 1 . 8 11 4 . 5 . Successful 107 | . 8 . 8 . 3 . 8 3 . 5 . 2 . . . 5 . 2 26 . 5 . 1 15 . 1 5 . . 3 3 2 . 2 . Failed 83 | . 3 . 8 . . . 8 5 . 10 . . . . . 8 . . . . 12 . . . . 3 7 1 . 5 8 2 . 3 . Catastrophic 20 | . . . 1 . . . . 1 . 4 . . . . . 1 . . . . 5 . . . . . 2 . . 2 2 . . 2 . Database Lockouts . | . . . . . . . . . . . . . . . . . . . . . . . . . . . . . . . . . . . . Manual 62 | . 7 . 10 . 2 . 2 4 . 4 . . 6 . . 3 . . . . 6 . . 1 . 2 6 1 . 3 3 2 . . . Terminals 106 | . 9 . 14 . . . 12 7 . 9 . . . . . 8 . . . . 11 . . . . 2 12 1 . 7 7 4 . 3 . Fabricators 11 | . . . . . . . . . . 1 . . . . . 2 . . . . 5 . . . . . . . . . 3 . . . . Repair Stations 10 | . . . 2 . . . 3 . . 3 . . . . . 1 . . . . . . . . . 1 . . . . . . . . . Recycling Units 5 | . 2 . . . . . . . . . . . . . . 2 . . . . . . . . . 1 . . . . . . . . . Scanalyzers 1 | . . . . . . . . 1 . . . . . . . . . . . . . . . . . . . . . . . . . . . Garrison Access 8 | . . . . . . . 1 . . 2 . . . . . . . . . . 1 . . . . . . . . 1 1 . . 2 . Terminal Hacks 78 | . 4 . 4 . 3 . 6 2 . 3 . 2 . . . 2 . 2 26 . . . 1 15 . . 4 . . 1 1 1 . 1 . Record 24 | . . . . . 3 . . . . 1 . 1 . . . . . . 11 . . . . 8 . . . . . . . . . . . Part Schematic 7 | . . . . . . . . . . . . . . . . . . . 7 . . . . . . . . . . . . . . . . Robot Schematic 5 | . . . . . . . . . . . . . . . . . . . 5 . . . . . . . . . . . . . . . . Robot Analysis 2 | . 1 . . . . . . . . . . . . . . . . . . . . . . . . . . . . 1 . . . . . Prototype ID Bank 11 | . . . 1 . . . 1 . . . . . . . . . . . 3 . . . . 5 . . . . . . 1 . . . . Open Door 6 | . . . . . . . . . . . . 1 . . . . . 2 . . . . 1 2 . . . . . . . . . . . Level Access Points 1 | . . . . . . . . . . . . . . . . . . . . . . . . . . . . . . . . 1 . . . Branch Access Points 4 | . . . . . . . 1 1 . . . . . . . 1 . . . . . . . . . . . . . . . . . 1 . Terminal Index 1 | . . . . . . . . . . . . . . . . . . . . . . . . . . . 1 . . . . . . . . Alert Level 7 | . . . 2 . . . 3 . . 1 . . . . . 1 . . . . . . . . . . . . . . . . . . . Unreport Threat 4 | . 1 . . . . . . . . 1 . . . . . . . . . . . . . . . . 2 . . . . . . . . Hauler Manifests 4 | . 1 . 1 . . . 1 1 . . . . . . . . . . . . . . . . . . . . . . . . . . . Zone Layout 2 | . 1 . . . . . . . . . . . . . . . . . . . . . . . . . 1 . . . . . . . . Fabricator Hacks 4 | . . . . . . . . . . . . . . . . 1 . . . . 2 . . . . . . . . . 1 . . . . Load Schematic 2 | . . . . . . . . . . . . . . . . . . . . . 1 . . . . . . . . . 1 . . . . Build 2 | . . . . . . . . . . . . . . . . 1 . . . . 1 . . . . . . . . . . . . . . Repair Station Hacks 4 | . . . 2 . . . 1 . . 1 . . . . . . . . . . . . . . . . . . . . . . . . . Scan Component 3 | . . . 1 . . . 1 . . 1 . . . . . . . . . . . . . . . . . . . . . . . . . Repair 1 | . . . 1 . . . . . . . . . . . . . . . . . . . . . . . . . . . . . . . . Recycling Unit Hacks 2 | . . . . . . . . . . . . . . . . 1 . . . . . . . . . 1 . . . . . . . . . Report Inventory 1 | . . . . . . . . . . . . . . . . . . . . . . . . . . 1 . . . . . . . . . Retrieve Matter 1 | . . . . . . . . . . . . . . . . 1 . . . . . . . . . . . . . . . . . . . Scanalyzer . | . . . . . . . . . . . . . . . . . . . . . . . . . . . . . . . . . . . . Garrison Access Hacks 5 | . . . . . . . 1 . . 1 . . . . . . . . . . 1 . . . . . . . . 1 . . . 1 . Seal Access 5 | . . . . . . . 1 . . 1 . . . . . . . . . . 1 . . . . . . . . 1 . . . 1 . Unauthorized Hacks 14 | . 4 . 2 . . . . 1 . . . . . . . 1 . . . . 2 . . . . . 1 . . 1 1 1 . . . Terminals 12 | . 2 . 2 . . . . 1 . . . . . . . 1 . . . . 2 . . . . . 1 . . 1 1 1 . . . Assimilate 2 | . . . . . . . . . . . . . . . . 1 . . . . 1 . . . . . . . . . . . . . . Botnet 8 | . 2 . 2 . . . . 1 . . . . . . . . . . . . 1 . . . . . 1 . . . 1 . . . . Detonate 1 | . . . . . . . . . . . . . . . . . . . . . . . . . . . . . . 1 . . . . . Disrupt 1 | . . . . . . . . . . . . . . . . . . . . . . . . . . . . . . . . 1 . . . Fabricators . | . . . . . . . . . . . . . . . . . . . . . . . . . . . . . . . . . . . . Repair Stations . | . . . . . . . . . . . . . . . . . . . . . . . . . . . . . . . . . . . . Recycling Units 2 | . 2 . . . . . . . . . . . . . . . . . . . . . . . . . . . . . . . . . . Tunnel 2 | . 2 . . . . . . . . . . . . . . . . . . . . . . . . . . . . . . . . . . Scanalyzers . | . . . . . . . . . . . . . . . . . . . . . . . . . . . . . . . . . . . . Garrison Access . | . . . . . . . . . . . . . . . . . . . . . . . . . . . . . . . . . . . . Data Cores Recovered . | . . . . . . . . . . . . . . . . . . . . . . . . . . . . . . . . . . . . Used . | . . . . . . . . . . . . . . . . . . . . . . . . . . . . . . . . . . . . Hacking Detections 56 | . 4 . 5 . . . 6 4 . 6 . . . . . 5 . . . . 6 . . . . 2 5 1 . 4 5 1 . 2 . Full Trace Events 9 | . . . 1 . . . . . . 1 . . . . . . . . . . 2 . . . . 1 . . . 1 2 . . 1 . Feedback Events 1 | . . . . . . . . . . . . . . . . . . . . . . . . . . 1 . . . . . . . . . Corruption 1 | . . . . . . . . . . . . . . . . . . . . . . . . . . 1 . . . . . . . . . Feedback Blocked . | . . . . . . . . . . . . . . . . . . . . . . . . . . . . . . . . . . . . Robot Schematics Acquired 5 | . . . . . . . . . . . . . . . . . . . 5 . . . . . . . . . . . . . . . . Robots Built 1 | . . . . . . . . . . . . . . . . 1 . . . . . . . . . . . . . . . . . . . Matter 153 | . . . . . . . . . . . . . . . . 153 . . . . . . . . . . . . . . . . . . . Time 40 | . . . . . . . . . . . . . . . . 40 . . . . . . . . . . . . . . . . . . . Total Robot Build Rating 1 | . . . . . . . . . . . . . . . . 1 . . . . . . . . . . . . . . . . . . . Part Schematics Acquired 7 | . . . . . . . . . . . . . . . . . . . 7 . . . . . . . . . . . . . . . . Parts Built 2 | . . . . . . . . . . . . . . . . . . . . . 2 . . . . . . . . . . . . . . Matter 212 | . . . . . . . . . . . . . . . . . . . . . 212 . . . . . . . . . . . . . . Time 53 | . . . . . . . . . . . . . . . . . . . . . 53 . . . . . . . . . . . . . . Total Part Build Rating 12 | . . . . . . . . . . . . . . . . . . . . . 12 . . . . . . . . . . . . . . Parts Repaired 1 | . . . 1 . . . . . . . . . . . . . . . . . . . . . . . . . . . . . . . . Time 32 | . . . 32 . . . . . . . . . . . . . . . . . . . . . . . . . . . . . . . . Parts Recycled . | . . . . . . . . . . . . . . . . . . . . . . . . . . . . . . . . . . . . Recycled Matter . | . . . . . . . . . . . . . . . . . . . . . . . . . . . . . . . . . . . . Retrieved Matter . | . . . . . . . . . . . . . . . . . . . . . . . . . . . . . . . . . . . . Retrieved Components . | . . . . . . . . . . . . . . . . . . . . . . . . . . . . . . . . . . . . Parts Scanalyzed . | . . . . . . . . . . . . . . . . . . . . . . . . . . . . . . . . . . . . Part Schematics Acquired . | . . . . . . . . . . . . . . . . . . . . . . . . . . . . . . . . . . . . Parts Damaged . | . . . . . . . . . . . . . . . . . . . . . . . . . . . . . . . . . . . . Bothacking | -11 -10 -10 -9 -9 -9 -8 -8 -7 -7 -7 -7 -7 -7 -7 -6 -6 -6 -6 -6 -5 -5 -5 -5 -5 -4 -4 -4 -4 -4 -4 -3 -3 -2 -1 -1 ------------ Run | Scr Mat Min Mat Min Exi Min Mat Fac Was Fac Low Low Zio Dee Pro Fac Low Low Dat Pro Fac Upp Upp War Pro Fac Ext Cet Arc Hub Res Tes Res Acc Com Used RIF Installer . | . . . . . . . . . . . . . . . . . . . . . . . . . . . . . . . . . . . . Robots Hacked . | . . . . . . . . . . . . . . . . . . . . . . . . . . . . . . . . . . . . Non-combat . | . . . . . . . . . . . . . . . . . . . . . . . . . . . . . . . . . . . . Combat . | . . . . . . . . . . . . . . . . . . . . . . . . . . . . . . . . . . . . Robot Hacks Applied . | . . . . . . . . . . . . . . . . . . . . . . . . . . . . . . . . . . . . Relay Couplers Released 4 | . . . . . . . . . . . . . . . . . . . . . . . . . . . . . . . 4 . . . . Programmers 4 | . . . . . . . . . . . . . . . . . . . . . . . . . . . . . . . 4 . . . . Robots Rewired 24 | . . . . . 3 . . . . . . . . . . . . . . . . . . . . . 19 . . . . 2 . . . Allies Hacked 1 | . . . . . . . . . . . . . . . . . . . . . . . . . . . . 1 . . . . . . . Hacks Repelled . | . . . . . . . . . . . . . . . . . . . . . . . . . . . . . . . . . . . . Allies | -11 -10 -10 -9 -9 -9 -8 -8 -7 -7 -7 -7 -7 -7 -7 -6 -6 -6 -6 -6 -5 -5 -5 -5 -5 -4 -4 -4 -4 -4 -4 -3 -3 -2 -1 -1 -------- Run | Scr Mat Min Mat Min Exi Min Mat Fac Was Fac Low Low Zio Dee Pro Fac Low Low Dat Pro Fac Upp Upp War Pro Fac Ext Cet Arc Hub Res Tes Res Acc Com Total Allies 68 | . . . . . 3 . . . 19 . . 2 2 . . 2 . . . 1 1 . . . . . 28 5 . . 3 2 . . . Largest Group 18 | . . . . . 3 3 1 . 18 10 . 2 2 2 1 1 . . . 1 2 . . . . . 16 14 5 2 3 1 . . . Highest-Rated Group 764 | . . . . . 24 24 8 . 463 246 . 51 190 190 95 26 . . . 95 121 . . . . . 764 693 424 139 138 47 . . . Highest-Rated Ally 156 | . . . . . 8 8 8 . 35 32 . 31 95 95 95 26 . . . 95 95 . . . . . 156 143 95 95 46 47 . . . Total Orders 14 | . . . . . . . . . . . . . . . . . . . . . . . . . . . . 2 2 . 8 . 2 . . STAY 1 | . . . . . . . . . . . . . . . . . . . . . . . . . . . . 1 . . . . . . . FOLLOW 3 | . . . . . . . . . . . . . . . . . . . . . . . . . . . . 1 2 . . . . . . EXPLORE 8 | . . . . . . . . . . . . . . . . . . . . . . . . . . . . . . . 6 . 2 . . RETURN 2 | . . . . . . . . . . . . . . . . . . . . . . . . . . . . . . . 2 . . . . Ally Attacks 701 | . . . . . . 13 1 . 213 42 . . . 67 5 . . . . 3 5 . . . . . 217 101 1 9 10 14 . . . Total Damage 17463 | . . . . . . 90 11 . 3420 532 . . . 1494 236 . . . . 146 236 . . . . . 7197 3164 47 307 191 392 . . . Kills 100 | . . . . . . 3 . . 8 5 . . . 13 1 . . . . 1 1 . . . . . 43 21 . 1 1 2 . . . Allies Corrupted 2 | . . . . . . . . . . . . . . . . . . . . . . . . . . . 2 . . . . . . . . Allies Melted 1 | . . . . . . . . . . . . . . . . . . . . . . . . . . . . . 1 . . . . . . Intel | -11 -10 -10 -9 -9 -9 -8 -8 -7 -7 -7 -7 -7 -7 -7 -6 -6 -6 -6 -6 -5 -5 -5 -5 -5 -4 -4 -4 -4 -4 -4 -3 -3 -2 -1 -1 ------- Run | Scr Mat Min Mat Min Exi Min Mat Fac Was Fac Low Low Zio Dee Pro Fac Low Low Dat Pro Fac Upp Upp War Pro Fac Ext Cet Arc Hub Res Tes Res Acc Com Robot Analysis Total 2 | . 1 . . . . . . . . . . . . . . . . . . . . . . . . . . . . 1 . . . . . Derelict Logs Recovered 11 | . . 2 . . . . . . . . 1 1 1 . 1 . 1 2 . . . . 1 . 1 . . . . . . . . . . Drone Launches 16 | . . . . . . . . . . . . . . . . . . . . . . . . . . . . . . . 13 . 3 . . Drone Recoveries 6 | . . . . . . . . . . . . . . . . . . . . . . . . . . . . . . . 5 . 1 . . Decoded 0b10 Intel 90 | . . . . . . . . . . . . . . . . . . . . . 23 . . . . 3 20 . 1 18 17 7 1 . . Traps 34 | . . . . . . . . . . . . . . . . . . . . . . . . . . 2 15 . . 6 8 3 . . . Emergency Access 31 | . . . . . . . . . . . . . . . . . . . . . . . . . . 1 4 . . 12 9 4 1 . . Items 23 | . . . . . . . . . . . . . . . . . . . . . 23 . . . . . . . . . . . . . . Exits 2 | . . . . . . . . . . . . . . . . . . . . . . . . . . . 1 . 1 . . . . . . Exploration | -11 -10 -10 -9 -9 -9 -8 -8 -7 -7 -7 -7 -7 -7 -7 -6 -6 -6 -6 -6 -5 -5 -5 -5 -5 -4 -4 -4 -4 -4 -4 -3 -3 -2 -1 -1 ------------- Run | Scr Mat Min Mat Min Exi Min Mat Fac Was Fac Low Low Zio Dee Pro Fac Low Low Dat Pro Fac Upp Upp War Pro Fac Ext Cet Arc Hub Res Tes Res Acc Com Turns Passed 28187 | 30 1337 1279 903 661 729 1080 2164 1119 282 1116 720 430 1692 1182 152 627 1025 1077 95 624 328 178 254 285 149 187 1984 452 64 934 2341 328 868 1188 323 Spaces Moved 17527 | 11 601 762 434 248 417 572 877 597 141 782 446 211 1294 959 278 461 376 560 80 290 359 348 560 775 220 391 1004 259 37 529 1207 143 525 610 163 Core 218 | . . . . . . . . . . . . . 12 . . . . . . . . . . . . . . . . . . 34 114 5 53 Treads 1470 | . . . . . . . . . 57 196 . . 317 163 . . . . . . . . . . . . 484 . . . 131 102 8 12 . Legs 7720 | 11 601 361 120 248 109 421 877 156 65 . . . . . . 338 376 560 80 290 68 . . . . . 32 259 37 529 1076 . 403 593 110 Wheels 3849 | . . 401 314 . 308 151 . 441 19 586 446 211 965 . . . . . . . . . . . . . . . . . . 7 . . . Hover 1228 | . . . . . . . . . . . . . . 796 278 123 . . . . 30 . . . . . 1 . . . . . . . . Flight 3042 | . . . . . . . . . . . . . . . . . . . . . 261 348 560 775 220 391 487 . . . . . . . . Fastest Speed 24 | 120 120 95 80 200 125 125 195 135 120 100 100 100 50 26 24 48 120 120 120 120 31 31 31 27 28 28 28 120 120 120 115 50 50 50 50 Average Speed 121 | 120 169 144 131 250 165 178 197 159 168 126 113 114 125 93 44 103 120 120 120 120 61 31 31 30 28 28 142 129 120 120 137 135 106 146 151 Slowest Speed 400 | 120 200 200 200 280 280 196 200 200 200 160 115 115 400 240 52 123 122 120 120 120 166 31 31 95 28 28 260 200 120 120 280 252 350 257 200 Overloaded Moves . | . . . . . . . . . . . . . . . . . . . . . . . . . . . . . . . . . . . . Propulsion Burnouts . | . . . . . . . . . . . . . . . . . . . . . . . . . . . . . . . . . . . . Robots Hopped 10 | . . . . . . . . . . . . . . . . . . . . . . . . . . . 10 . . . . . . . . Cave-ins Triggered . | . . . . . . . . . . . . . . . . . . . . . . . . . . . . . . . . . . . . Exploration Rate (%) 52 | 3 83 97 52 58 89 97 72 14 75 27 59 14 82 86 53 7 63 67 69 54 12 58 76 91 56 10 93 72 67 51 26 32 13 21 6 Regions Visited 35 Branch Regions 23 Pre-discovered Areas 7 | . 2 1 . . 1 . . . . . . 1 . . . . . . 1 . . . 1 . . . . . . . . . . . . Known Exits Taken 24 | . . . 1 . . . . . . 1 1 1 1 1 1 1 1 1 1 1 1 1 1 1 1 1 1 1 1 1 . 1 . 1 . Unknown Exits Taken 9 | 1 1 1 . 1 1 1 1 . . . . . . . . . . . . . . . . . . . . . . . 1 . 1 . . Scrap Searched 21 | . . 3 . . . 3 . . . . 1 1 3 . 1 . . 2 . . . 1 3 . 3 . . . . . . . . . . Spaces Dug 89 | . 2 7 . . . . . 4 3 . . 4 . . 3 2 5 3 . 5 9 . 6 . . 9 . . . . 14 . 3 8 2 Terrain Destroyed 1246 | . 2 87 62 . . 24 92 7 4 20 . 53 . 73 3 6 7 3 . 5 9 . 6 . . 9 2 2 . 17 486 45 76 134 12 Melee 30 | . 2 . . . . . . 3 3 . . 4 . . . . . . . 2 6 . 2 . . 4 . . . . 3 . 1 . . Projectile 152 | . . . . . . 3 24 4 1 . . . . 3 3 6 7 3 . 3 3 . 4 . . 5 2 2 . 13 15 1 11 27 12 AOE 1062 | . . 87 62 . . 21 68 . . 20 . 49 . 70 . . . . . . . . . . . . . . . 4 468 42 64 107 . Terrain Rammed . | . . . . . . . . . . . . . . . . . . . . . . . . . . . . . . . . . . . . Walls Destroyed . | . . . . . . . . . . . . . . . . . . . . . . . . . . . . . . . . . . . . Machines Disabled . | . . . . . . . . . . . . . . . . . . . . . . . . . . . . . . . . . . . . Actions | -11 -10 -10 -9 -9 -9 -8 -8 -7 -7 -7 -7 -7 -7 -7 -6 -6 -6 -6 -6 -5 -5 -5 -5 -5 -4 -4 -4 -4 -4 -4 -3 -3 -2 -1 -1 --------- Run | Scr Mat Min Mat Min Exi Min Mat Fac Was Fac Low Low Zio Dee Pro Fac Low Low Dat Pro Fac Upp Upp War Pro Fac Ext Cet Arc Hub Res Tes Res Acc Com Total 22840 | 18 767 880 638 269 458 631 1160 719 169 865 628 345 1348 1184 302 567 905 952 79 551 450 406 622 817 306 438 1515 356 56 693 1760 232 762 793 199 Wait 3042 | . 31 52 75 3 5 39 67 40 8 28 157 87 7 122 15 47 480 374 . 240 47 50 42 16 87 8 277 54 20 42 338 6 128 50 . Move 17478 | 10 600 761 433 247 416 571 876 597 140 781 445 210 1293 958 277 460 375 559 79 289 358 347 559 774 219 390 987 258 36 528 1206 142 525 609 163 Hop 6 | . . . . . . . . . . . . . . . . . . . . . . . . . . . 6 . . . . . . . . Pick Up 201 | 1 14 7 18 4 4 4 14 7 1 8 1 3 5 9 1 4 5 1 . 3 5 . . 4 . 1 9 7 . 4 21 5 14 17 . Fast Attach 211 | . 2 2 6 . 2 3 7 5 6 8 . 2 17 23 . 11 1 4 . 2 8 1 4 7 . 5 11 6 . 9 21 1 23 10 4 Attach 134 | . 3 8 10 2 . 1 5 6 . 1 1 2 . 3 3 1 5 . . . 3 . . . . . 4 2 . 7 18 11 7 26 5 Detach 18 | . . . 1 . . . . . . . . . . . . . . . . . 1 . . . . . 4 . . . 3 2 2 5 . Swap 250 | . 16 4 13 . . 3 34 13 2 6 12 10 3 6 2 12 10 1 . 4 4 . 2 . . 7 8 7 . 21 27 3 10 10 . Drop 302 | 2 20 5 10 2 6 7 25 12 4 11 1 2 19 23 1 11 4 5 . 4 12 1 2 12 . 6 15 12 . 11 30 9 9 7 2 Fire 720 | 5 57 41 69 11 . 3 90 26 5 22 10 25 . 32 3 19 16 3 . 4 3 . 8 . . 5 3 10 . 69 69 19 18 50 25 Melee 199 | . 24 . 3 . . . . 9 3 . 1 4 4 8 . 2 9 5 . 5 9 7 5 4 . 16 39 . . . 7 8 26 1 . Ram 2 | . . . . . . . . . . . . . . . . . . . . . . . . . . . . . . . . 2 . . . Kick 8 | . . . . . . . 3 . . . . . . . . . . . . . . . . . . . . . . 2 . . . 3 . Crush 31 | . . . . . . . . . . . . . . . . . . . . . . . . . . . . . . . 18 13 . . . Escape Stasis 11 | . . . . . . . . 4 . . . . . . . . . . . . . . . . . . 2 . . . . . . 5 . Rewire 225 | . . . . . 25 . 39 . . . . . . . . . . . . . . . . . . . 150 . . . . 11 . . . Trap . | . . . . . . . . . . . . . . . . . . . . . . . . . . . . . . . . . . . . Miscellaneous 2 | . . . . . . . . . . . . . . . . . . . . . . . . . . . . . . . 2 . . . . Route ------- -11/Scrapyard -10/Materials (discovered 4 exits: *Mat x2 / [*Min x2]) -10/Mines (discovered 2 exits: *Mat x2) -9/Materials -9/Mines (discovered 3 exits: *Mat x2 / *Exi) -9/Exiles -8/Mines (discovered 2 exits: *Mat x2) -8/Materials -7/Factory (discovered 4 exits: Sto x2 / Low x2) -7/Waste -7/Factory (discovered 4 exits: *Fac x2 / *Sto / *Low) -7/Lower Caves -7/Lower Caves -7/Zion (discovered 2 exits: *Dee / *Pro) -7/Deep Caves -6/Proximity Caves -6/Factory (discovered 2 exits: *Low x2) -6/Lower Caves -6/Lower Caves (discovered 2 exits: *Fac / *Dat) -6/Data Miner -5/Proximity Caves -5/Factory -5/Upper Caves -5/Upper Caves -5/Warlord -4/Proximity Caves -4/Factory (discovered 2 exits: *Res / *Ext) -4/Extension (discovered 3 exits: *Res x2 / *Cet) -4/Cetus (discovered 2 exits: *Res / *Arc) -4/Archives -4/Hub_04(d) (discovered 2 exits: *Res x2) -3/Research -3/Testing -2/Research -1/Access -1/Command History --------- Turn | Location | Event 5 | -11/Scrapyard | Discovered new exit (range 2) 31 | -11/Scrapyard | Entered Materials 204 | -10/Materials | Discovered new exit (range 16) 300 | -10/Materials | Build established: Mutant 616 | -10/Materials | Discovered new exit (range 14) 788 | -10/Materials | Discovered new exit (range 7) 1005 | -10/Materials | Discovered new exit (range 10) 1368 | -10/Materials | Entered Mines 1509 | -10/Mines | YI-UF0 nonchalantly dropped a Grenade Launcher on the ground 1562 | -10/Mines | Core integrity fell below 50% 1569 | -10/Mines | Destroyed YI-UF0 1580 | -10/Mines | Found Corrupted Prototype Launcher 1623 | -10/Mines | Lost 7 parts (1p2n1u3w) 1659 | -10/Mines | Learned location of 1 exit from Materials 1725 | -10/Mines | Identified YI-UF0's Doublenader 1884 | -10/Mines | Assembled infested the area 1889 | -10/Mines | Assisted by a Guerilla fighting off Assembled 2089 | -10/Mines | Discovered new exit (range 10) 2232 | -10/Mines | Discovered new exit (range 9) 2396 | -10/Mines | Learned location of Mines (-9) 2415 | -10/Mines | Core integrity fell below 20% 2647 | -10/Mines | Entered Materials 2647 | -9/Materials | Evolved 2 slots: Propulsion x1, Utility x1 2648 | -9/Materials | Identified exit to Mines 3123 | -9/Materials | Repaired Cooling System 3447 | -9/Materials | First assault squad dispatched 3550 | -9/Materials | Entered Mines 3596 | -9/Mines | Discovered new exit (range 5) 3618 | -9/Mines | Discovered new exit (range 4) 3750 | -9/Mines | Core integrity fell below 50% 3789 | -9/Mines | Build established: Scavenger-Mutant 4047 | -9/Mines | Received a Rocket Launcher from a helpful Derelict 4092 | -9/Mines | A weapon hastily lodged in a ceiling crevice suddenly fell to the ground 4132 | -9/Mines | Found a damaged Exp. Sensor Array with a note attached 4138 | -9/Mines | Found Prototype Device 4200 | -9/Mines | Deemed a non-threat by the Exiles lab entrance 4200 | -9/Mines | Discovered new exit (range 5) 4211 | -9/Mines | Entered Exiles 4211 | -9/Exiles | Found Exiles lab destroyed 4509 | -9/Exiles | Opened EX-Vault 4524 | -9/Exiles | Found Prototype Energy Gun 4524 | -9/Exiles | Identified AWS/Thermal 4603 | -9/Exiles | Learned location of Zion (-7) 4826 | -9/Exiles | Build established: Mutant 4925 | -9/Exiles | Discovered new exit (range 10) 4940 | -9/Exiles | Entered Mines 4940 | -8/Mines | Accompanied by 3 allies 5024 | -8/Mines | Discovered new exit (range 11) 5256 | -8/Mines | Discovered new exit (range 3) 6020 | -8/Mines | Entered Materials 6020 | -8/Materials | Accompanied by 1 ally 6020 | -8/Materials | Evolved 2 slots: Propulsion x1, Weapon x1 6250 | -8/Materials | Destroyed 7 combat bots 6291 | -8/Materials | Discovered new exit (range 9) 6487 | -8/Materials | Build established: Scavenger-Tank 6850 | -8/Materials | Garrison activated, responded to threat 8184 | -8/Materials | Entered Factory 8184 | -7/Factory | Evolved 2 slots: Utility x2 8185 | -7/Factory | Identified Exp. Sensor Array 8481 | -7/Factory | Build established: Scavenger-Skirmisher 9086 | -7/Factory | Build established: Mutant 9160 | -7/Factory | Identified exit to Storage 9160 | -7/Factory | Identified exit to Lower Caves 9303 | -7/Factory | Sucked down chute 9303 | -7/Factory | Entered Waste 9314 | -7/Waste | Spotted C-40 Crusher 9318 | -7/Waste | EMP discharged 9318 | -7/Waste | Spotted C-40 Crusher 9329 | -7/Waste | Crushed by Compactor (1 part destroyed, 1 dropped) 9340 | -7/Waste | Crushed by Compactor (1 part destroyed, 2 dropped) 9349 | -7/Waste | Met Warlord forces unprepared to attack 9418 | -7/Waste | EMP discharged 9418 | -7/Waste | System corruption reached 10% 9432 | -7/Waste | Spotted C-40 Crusher 9436 | -7/Waste | Allies destroyed C-40 Crusher 9465 | -7/Waste | Spotted C-40 Crusher 9495 | -7/Waste | Spotted C-40 Crusher 9502 | -7/Waste | Allies destroyed C-40 Crusher 9504 | -7/Waste | Allies destroyed C-40 Crusher 9518 | -7/Waste | EMP discharged 9563 | -7/Waste | Discovered new exit (range 11) 9578 | -7/Waste | Identified exit to Factory 9585 | -7/Waste | Entered Factory 9585 | -7/Factory | Accompanied by 10 allies 9760 | -7/Factory | Build established: Scavenger-Skirmisher 10214 | -7/Factory | Discovered exit to Lower Caves (range 16) 10258 | -7/Factory | Discovered new exit (range 4) 10261 | -7/Factory | Identified exit to Factory 10390 | -7/Factory | Discovered exit to Storage (range 5) 10425 | -7/Factory | Discovered exit to Factory (range 4) 10596 | -7/Factory | Cargo convoy interrupted 10701 | -7/Factory | Entered Lower Caves 10852 | -7/Lower Caves | Acquired the password to a Derelict Tinkerer's latest research 11131 | -7/Lower Caves | Learned Factory trap positions 11146 | -7/Lower Caves | Build established: Scavenger-Mutant 11408 | -7/Lower Caves | Discovered new exit (range 13) 11420 | -7/Lower Caves | Identified exit to Lower Caves 11421 | -7/Lower Caves | Entered another Lower Caves area 11639 | -7/Lower Caves | Destroyed 8 combat bots 11677 | -7/Lower Caves | Found Imp. Powered Armor 11711 | -7/Lower Caves | A Commander dispatched an escort 11721 | -7/Lower Caves | Learned Factory stockpile data 11830 | -7/Lower Caves | Discovered new exit (range 7) 11836 | -7/Lower Caves | Identified exit to Zion 11851 | -7/Lower Caves | Entered Zion 11851 | -7/Zion | Accompanied by 2 allies 11852 | -7/Zion | Commander's escort returned to base 11852 | -7/Zion | Commander's escort returned to base 11880 | -7/Zion | System corruption cleaned by Quarantine Array 11939 | -7/Zion | Received a visual enhancement algorithm 11960 | -7/Zion | Acquired unknown access codes intercepted by a Zionite 11964 | -7/Zion | Discovered new exit (range 16) 11980 | -7/Zion | Identified exit to Proximity Caves 12297 | -7/Zion | Given A8's code to call for help 12462 | -7/Zion | Given the Hacking Drone Bay 12552 | -7/Zion | Build established: Mutant 12639 | -7/Zion | Learned Factory terminal intel 12848 | -7/Zion | Visited the Megawrench Repair Shop 12848 | -7/Zion | Megawrench repaired 8 parts 12959 | -7/Zion | Found Prototype Processor 12959 | -7/Zion | Identified Exp. Signal Interpreter 12962 | -7/Zion | Found Prototype Processor 12962 | -7/Zion | Identified Exp. Core Analyzer 12969 | -7/Zion | Found Prototype Processor 12969 | -7/Zion | Identified Exp. Armor Integrity Analyzer 12971 | -7/Zion | Found Prototype Processor 12971 | -7/Zion | Identified Exp. Terrain Scan Processor 12973 | -7/Zion | Found Prototype Hackware 13240 | -7/Zion | Build established: Scavenger-Mutant 13261 | -7/Zion | Found CR-A16's Pointy Stick 13497 | -7/Zion | Opened final containment barrier to the Deep Caves 13519 | -7/Zion | Enhanced Grunt warped into view, answering call for help 13520 | -7/Zion | Enhanced Grunt warped into view, answering call for help 13532 | -7/Zion | Discovered new exit (range 3) 13532 | -7/Zion | Saw the warning signs outside the Deep Caves entrance 13541 | -7/Zion | Identified exit to Deep Caves 13543 | -7/Zion | Entered Deep Caves 13543 | -7/Deep Caves | Accompanied by 2 allies 13784 | -7/Deep Caves | Attacked by Z-Imprinter 13799 | -7/Deep Caves | Destroyed Z-Imprinter 13828 | -7/Deep Caves | Found Prototype Device 13828 | -7/Deep Caves | Identified Zio. Metafield Generator 13994 | -7/Deep Caves | Z-Facility disabled 14069 | -7/Deep Caves | Found Prototype Protection 14070 | -7/Deep Caves | Identified Zio. Weapon Casing 14285 | -7/Deep Caves | Lost 4 parts (1n1u2w) 14425 | -7/Deep Caves | Found Prototype Protection 14425 | -7/Deep Caves | Identified Zio. Heavy Carapace 14576 | -7/Deep Caves | Discovered new exit (range 3) 14701 | -7/Deep Caves | Identified exit to Proximity Caves 14725 | -7/Deep Caves | Entered Proximity Caves 14725 | -6/Proximity Caves | Accompanied by 1 ally 14730 | -6/Proximity Caves | Learned Factory non-interactive machine intel 14768 | -6/Proximity Caves | Attracted the attention of an 0b10 outpost 14865 | -6/Proximity Caves | Discovered exit to Factory (range 8) 14877 | -6/Proximity Caves | Entered Factory 14877 | -6/Factory | Evolved 2 slots: Propulsion x1, Utility x1 14878 | -6/Factory | Loaded intel: 115 trap records 14880 | -6/Factory | Loaded intel: 240 non-interactive machine locations 14881 | -6/Factory | Loaded intel: 20 terminal locations 14919 | -6/Factory | Identified Exp. System Shield 15007 | -6/Factory | Identified exit to Lower Caves 15383 | -6/Factory | Fabricated R-06 Scavenger? 15504 | -6/Factory | Entered Lower Caves 15636 | -6/Lower Caves | Spotted B-75 Beast 15643 | -6/Lower Caves | Learned Factory garrison access intel 15676 | -6/Lower Caves | Destroyed B-75 Beast 15705 | -6/Lower Caves | Lost 3 parts (1p1n1w) 15982 | -6/Lower Caves | Build established: Scavenger-Assassin 16482 | -6/Lower Caves | Encountered a Warlord checkpoint 16484 | -6/Lower Caves | Discovered new exit (range 24) 16528 | -6/Lower Caves | Identified exit to Lower Caves 16529 | -6/Lower Caves | Entered another Lower Caves area 16554 | -6/Lower Caves | Discovered new exit (range 20) 16690 | -6/Lower Caves | Learned Factory terminal intel 17269 | -6/Lower Caves | Learned Factory terminal intel 17305 | -6/Lower Caves | Discovered new exit (range 20) 17327 | -6/Lower Caves | Encountered a Warlord checkpoint 17605 | -6/Lower Caves | Identified exit to Data Miner 17606 | -6/Lower Caves | Entered Data Miner 17606 | -6/Data Miner | Discovered new exit (range 6) 17629 | -6/Data Miner | Met Data Miner 17652 | -6/Data Miner | Learned location of Section 7 (-2) 17652 | -6/Data Miner | Acquired the access code to Warlord's prototype stash 17671 | -6/Data Miner | Received God Mode back door access code from Data Miner 17700 | -6/Data Miner | Identified exit to Proximity Caves 17701 | -6/Data Miner | Entered Proximity Caves 17954 | -5/Proximity Caves | Spotted B-75 Beast 17956 | -5/Proximity Caves | Escorted by Enhanced Grunt 17963 | -5/Proximity Caves | Revealed the true nature of CR-A16's Pointy Stick 17967 | -5/Proximity Caves | Allies destroyed B-75 Beast 18093 | -5/Proximity Caves | Found Alien Artifact 18233 | -5/Proximity Caves | Discovered new exit (range 22) 18262 | -5/Proximity Caves | Identified exit to Factory 18325 | -5/Proximity Caves | Entered Factory 18325 | -5/Factory | Accompanied by 1 ally 18325 | -5/Factory | Evolved 2 slots: Utility x2 18326 | -5/Factory | Loaded intel: 20 terminal locations 18327 | -5/Factory | Loaded intel: 4 garrison access locations 18423 | -5/Factory | Local fabrication network quarantined 18429 | -5/Factory | Incoming investigation squad redirected 18452 | -5/Factory | Fabricated Cmb. Gravmag System? 18623 | -5/Factory | Discovered new exit (range 18) 18625 | -5/Factory | First assault squad dispatched 18633 | -5/Factory | Identified exit to Upper Caves 18653 | -5/Factory | Entered Upper Caves 18777 | -5/Upper Caves | Spotted B-75 Beast 18781 | -5/Upper Caves | Destroyed B-75 Beast 18811 | -5/Upper Caves | Discovered new exit (range 12) 18814 | -5/Upper Caves | Identified exit to Upper Caves 18828 | -5/Upper Caves | Build established: Scout 18831 | -5/Upper Caves | Entered another Upper Caves area 18833 | -5/Upper Caves | Encountered a Warlord checkpoint 18873 | -5/Upper Caves | Spotted B-75 Beast 18878 | -5/Upper Caves | Destroyed B-75 Beast 18888 | -5/Upper Caves | Learned location of Armory (-4) 19078 | -5/Upper Caves | Attracted the attention of an 0b10 checkpoint 19080 | -5/Upper Caves | Discovered new exit (range 19) 19085 | -5/Upper Caves | Identified exit to Warlord 19085 | -5/Upper Caves | Entered Warlord 19272 | -5/Warlord | Warlord's base attacked by MAIN.C 19280 | -5/Warlord | Found Prototype Energy Cannon 19299 | -5/Warlord | Met Warlord 19302 | -5/Warlord | Opened Warlord's prototype stash 19315 | -5/Warlord | Found Prototype Processor 19315 | -5/Warlord | Identified Spectral Analyzer 19317 | -5/Warlord | Found Prototype Device 19317 | -5/Warlord | Identified Exp. Focal Shield 19329 | -5/Warlord | Found Prototype Reactor 19362 | -5/Warlord | Discovered new exit (range 20) 19362 | -5/Warlord | Opened side exit 19370 | -5/Warlord | Identified exit to Proximity Caves 19370 | -5/Warlord | Entered Proximity Caves 19371 | -4/Proximity Caves | Learned location of 1 exit from Upper Caves 19486 | -4/Proximity Caves | Discovered new exit (range 8) 19519 | -4/Proximity Caves | Identified exit to Factory 19519 | -4/Proximity Caves | Entered Factory 19519 | -4/Factory | Evolved 2 slots: Power x1, Utility x1 19520 | -4/Factory | Loaded intel: 22 terminal locations 19577 | -4/Factory | Found Prototype Device 19577 | -4/Factory | Identified Exp. ECM Suite 19615 | -4/Factory | Discovered new exit (range 22) 19619 | -4/Factory | Discovered new exit (range 15) 19622 | -4/Factory | Identified exit to Research 19639 | -4/Factory | Identified Vortex Cannon 19680 | -4/Factory | Incoming investigation squad redirected 19706 | -4/Factory | Identified exit to Extension 19706 | -4/Factory | Entered Extension 19717 | -4/Extension | Rescued A7 19738 | -4/Extension | Rescued a captive Derelict 19739 | -4/Extension | Rescued a captive Derelict 19769 | -4/Extension | Rescued a captive Derelict 19769 | -4/Extension | Rescued a captive Derelict 19807 | -4/Extension | Rescued a captive Derelict 19850 | -4/Extension | Lost 3 parts (1p2u) 20075 | -4/Extension | Spotted B-86 Titan 20139 | -4/Extension | Spotted B-86 Titan 20143 | -4/Extension | Destroyed B-86 Titan 20148 | -4/Extension | Destroyed B-86 Titan 20149 | -4/Extension | Build established: Sprinter 20162 | -4/Extension | Identified Vortex Chain Reactor 20465 | -4/Extension | Build established: Scavenger-Mutant 20956 | -4/Extension | First assault squad dispatched 20986 | -4/Extension | Incoming assault squad redirected 20998 | -4/Extension | Rescued a captive Derelict 21004 | -4/Extension | Build established: Commander-Mutant 21011 | -4/Extension | P-70 Sage assimilated allied 52-UID(g) 21028 | -4/Extension | Rescued a captive Derelict 21331 | -4/Extension | Discovered exit to Research (range 10) 21333 | -4/Extension | Discovered new exit (range 6) 21556 | -4/Extension | Disrupted transfer network 21670 | -4/Extension | Identified exit to Cetus 21690 | -4/Extension | Entered Cetus 21690 | -4/Cetus | Accompanied by 14 allies (A7) 21695 | -4/Cetus | Acquired a Cetus Manufacturing Module code from A7 21706 | -4/Cetus | Spotted Cetus Guard 21706 | -4/Cetus | Spotted Cetus Guard 21708 | -4/Cetus | Spotted Cetus Guard 21710 | -4/Cetus | Allies destroyed Cetus Guard 21710 | -4/Cetus | Spotted Cetus Guard 21719 | -4/Cetus | Allies destroyed Cetus Guard 21731 | -4/Cetus | Destroyed Cetus Guard 21733 | -4/Cetus | Allies destroyed Cetus Guard 21856 | -4/Cetus | Started Cetus Manufacturing Module 21881 | -4/Cetus | Manufactured an Enhanced Grunt 21906 | -4/Cetus | Manufactured an Enhanced Grunt 21912 | -4/Cetus | Escorted A7 to Cetus Mainframe 21925 | -4/Cetus | Discovered new exit (range 23) 21931 | -4/Cetus | Manufactured an Enhanced Grunt 21956 | -4/Cetus | Manufactured an Enhanced Grunt 21973 | -4/Cetus | Spotted Cetus Guard 21973 | -4/Cetus | Spotted Cetus Guard 21973 | -4/Cetus | Spotted Cetus Guard 21973 | -4/Cetus | Spotted Cetus Guard 21975 | -4/Cetus | Discovered exit to Research (range 23) 21981 | -4/Cetus | Manufactured an Enhanced Grunt 21998 | -4/Cetus | Destroyed Cetus Guard 22001 | -4/Cetus | Allies destroyed Cetus Guard 22002 | -4/Cetus | Destroyed Cetus Guard 22002 | -4/Cetus | Allies destroyed Cetus Guard 22104 | -4/Cetus | Extracted ID and sensor layout for unrecognized location from A7's data core 22132 | -4/Cetus | Identified exit to Archives 22142 | -4/Cetus | Entered Archives 22142 | -4/Archives | Accompanied by 5 allies 22156 | -4/Archives | Met Zhirov 22157 | -4/Archives | Identified exit to Hub_04(d) 22162 | -4/Archives | Reinforcements dispatched to Archives 22206 | -4/Archives | Entered Hub_04(d) 22206 | -4/Hub_04(d) | Accompanied by 2 allies 22227 | -4/Hub_04(d) | Discovered exit to Research (range 17) 22294 | -4/Hub_04(d) | Discovered exit to Research (range 18) 22956 | -4/Hub_04(d) | First assault squad dispatched 22957 | -4/Hub_04(d) | Lost 4 parts (3u1w) 23058 | -4/Hub_04(d) | Incoming investigation squad redirected 23118 | -4/Hub_04(d) | Lost 9 parts (1p2n2u4w) 23140 | -4/Hub_04(d) | Entered Research 23140 | -3/Research | Evolved 2 slots: Propulsion x1, Utility x1 23219 | -3/Research | Found Unknown Device 23219 | -3/Research | Identified Antimissile System 23340 | -3/Research | Revision forces began assault on 0b10 23412 | -3/Research | Met up with Revision 17++ 23840 | -3/Research | Research terminal network offline 23942 | -3/Research | Spotted B-86 Titan 23981 | -3/Research | Found Prototype Launcher 23981 | -3/Research | Identified Tactical Quantum Warhead 24179 | -3/Research | Destroyed B-86 Titan 24283 | -3/Research | Found Adv. Powered Armor 24442 | -3/Research | Spotted Striker 24459 | -3/Research | Discovered new exit (range 20) 24664 | -3/Research | Spotted Striker 24667 | -3/Research | Spotted Striker 24682 | -3/Research | Destroyed Striker 24692 | -3/Research | Destroyed Striker 24719 | -3/Research | Lost 5 parts (1p3n1u) 25262 | -3/Research | Spotted Striker 25349 | -3/Research | Destroyed Striker 25350 | -3/Research | Lost 5 parts (1n2u2w) 25481 | -3/Research | Entered Testing 25533 | -3/Testing | Found Prototype Energy Gun 25534 | -3/Testing | Identified Hyp. EM Gauss Rifle 25555 | -3/Testing | Build established: Scavenger-Mutant 25612 | -3/Testing | Found Prototype Hackware 25613 | -3/Testing | Identified System Mapper 25711 | -3/Testing | Found Prototype Device 25711 | -3/Testing | Identified Exp. Terrain Scanner 25716 | -3/Testing | Identified exit to Research 25731 | -3/Testing | Lost 6 parts (2p1n2u1w) 25774 | -3/Testing | Core integrity fell below 50% 25789 | -3/Testing | Found Prototype Energy Gun 25790 | -3/Testing | Identified Tachyon Dispersion Ray 25803 | -3/Testing | Core integrity fell below 20% 25804 | -3/Testing | Lost 8 parts (1p4n3w) 25809 | -3/Testing | Entered Research 25809 | -2/Research | Warlord forces began assault on 0b10 25809 | -2/Research | Evolved 2 slots: Utility x2 25838 | -2/Research | Spotted B-90 Cyclops 25889 | -2/Research | Destroyed B-90 Cyclops 25919 | -2/Research | Research machine network offline 25948 | -2/Research | Core integrity fell below 50% 25956 | -2/Research | Lost 5 parts (1n4u) 26200 | -2/Research | Borebot progress halted 26252 | -2/Research | Found Fusion Bomb Launcher 26416 | -2/Research | Borebot progress halted 26461 | -2/Research | Borebot progress halted 26601 | -2/Research | Spotted Executioner 26659 | -2/Research | Discovered new exit (range 7) 26659 | -2/Research | Spotted Striker 26661 | -2/Research | Spotted Executioner 26663 | -2/Research | Spotted Striker 26677 | -2/Research | Entered Access 26677 | -1/Access | Evolved 2 slots: Power x1, Weapon x1 27011 | -1/Access | Build established: Scavenger-Tank 27227 | -1/Access | Lost 7 parts (3p3u1w) 27427 | -1/Access | First assault squad dispatched 27708 | -1/Access | Build established: Generator-Mutant 27717 | -1/Access | Identified exit to Command 27738 | -1/Access | Incoming assault squad redirected 27764 | -1/Access | Lost 4 parts (1p2u1w) 27809 | -1/Access | System corruption reached 10% 27809 | -1/Access | Spotted B-99 Colossus 27816 | -1/Access | Core integrity fell below 50% 27826 | -1/Access | Spotted B-99 Colossus 27830 | -1/Access | Destroyed B-99 Colossus 27848 | -1/Access | Core integrity fell below 20% 27865 | -1/Access | Entered Command 27889 | -1/Command | Lost 26 parts (5p12n4u5w) 28105 | -1/Command | Build established: Mutant 28188 | -1/Command | Destroyed by S-43 Plague with Heavy Machine Gun Last Messages --------------- Destroyed Imp. Antigrav System. Hvy. Neutron Cannon destroyed. Slug penetrates Wall. P-80 Master suffers critical hit (Destroy). Destroyed Prototype Energy Gun. Slug penetrates Wall. P-80 Master suffers critical hit (Destroy). P-80 Master destroyed. Slug penetrates Wall. Overheating: Energy bleed (-84). Biometal Medium Treads destroyed. Dropped Rnf. Quantum Reactor. Acquired 57 matter. Slug penetrates Wall. Slug penetrates S-43 Plague. System corrupted: Matter fused (-8). Enh. Quantum Rifle destroyed. Slug penetrates Wall. Slug penetrates S-43 Plague. S-43 Plague destroyed. Map ----- +----------------------------------------------------+ | | | | | | | | | | | | | | | | | | | ?????????????????????????????????????????????????? | | ????????????????????????????????????############## | | ????????????????????????????????????# # | | ????????????????????????????????????# # | | ????????????????????????????????????# # | | ????????????????????????????????????# ! # | | ?????????????????????????????????##;# # | | ???????????????????????????????? # # | | ????????????????????##????????? !!!# "" # | | ???????????????????? ??????? !!=# """" # | | ????????????????????? ??????? !! # """" # | | ?????????????????????? ????? ! # "" # | | ?????????????????????##+#+#? ?# # | | ?????????????????????# # ??# # | | ?????????????????????#[ # ????#####+######## | | ?????????????????????# [%##;#??????# #????? | | ?????????????????????# @%**######### ###### | | ?????????????????????# !%+*s s | | ?????????????????????# =!########### | | ?????????????????????# ##?????????# | | ?????????????????????# #??????????# "" | | ?????????????????????##;###??????????### """" | | ?????????????????????# ???????????????# """" | | ?????????????????????# ???????????????# "" | | ?????????????????????# ???????????????# | | ?????????????????????# ????????????????# | | ?????????????????????# ????????????????# | | ?????????????????????/w????????????????# | | ?????????????????????#?????????????????+ ######## | | ???????????????????????????????????????# #??????? | | ???????????????????????????????????????# #??????? | | ???????????????????????????????????????# #??????? | | ???????????????????????????????????????# #??????? | | ???????????????????????????????????????# #??????? | | ???????????????????????????????????????# #??????? | | ???????????????????????????????????????# #??????# | | ??????????????????????????????????????? ??????# | | ??????????????????????????????????????? "" ??????# | | ??????????????????????????????????????? T" ??????# | | ??????????????????????????????????????? ?????????? | | ?????????????????????????????????????????????????? | +----------------------------------------------------+ Best States ------------- Heat Dissipation 128 Coolant Potential 80 Energy Generation 65 Energy Capacity 1300 Matter Stores 500 Matter Capacity 500 Sight Range 24 Robot Scan Range 20 Terrain Scan Range 30 Terrain Scan Density 1110 ECM Strength 1 Jamming Range 16 Cloak Strength 3 Additional Mass Support 12 Base Temperature (-) 200 Armor Coverage 1200 Resistance: KI 30 Propulsion Shielding 66 Weapon Shielding 100 Point Defense Rating 240 Phase Shifting 10 Evasion (%) 74 Targeting Accuracy 16 Melee Accuracy 6 Core Analysis 10 Armor Integrity Analysis 50 Recoil Reduction 5 Kinecelleration 40 Offensive Hacking 20 Defensive Hacking 16 Item Schematics ----------------- Combat Drone Bay | -6/Data Miner | Free Lgt. Regenerative Plating | -6/Data Miner | Free Exp. Flexi-carbon Leg | -6/Data Miner | Free Tactical Coordination Suite | -6/Data Miner | Free Exp. Transmission Jammer | -6/Data Miner | Free Plasma Sword | -6/Data Miner | Free Cmb. Gravmag System | -6/Data Miner | Free Robot Schematics ------------------ S-27 Virus | -6/Data Miner | Free G-50 Soldier | -6/Data Miner | Free H-66 Slayer | -6/Data Miner | Free I-36 Angel | -6/Data Miner | Free X-72 Disruptor | -6/Data Miner | Free Fabricated ------------ R-06 Scavenger | x1 | -6/Factory | Preloaded Cmb. Gravmag System | x2 | -5/Factory Alien Tech Used ----------------- None Achievements -------------- None Challenges ------------ None Game ------ Seed PointKineticProtection Manual? 0 Play Time 03:47:17 Cumulative 329.9 hours Start 2021.09.12 @ 22:08:33 End 2021.09.13 @ 02:09:13 Sessions 1 Manual Loads 0 Difficulty Rogue Special Mode None Game No. 355 Rogue 355 Adventurer 0 Explorer 0 Win Type - Total 6 Types 6/0/0/0/0/0/0/0/0 Lore% 77 Gallery% 89 Achievement% 68 Wizard Run 0 Options --------- ASCII 0 Keyboard 0 Movement Mouse Keybinds 1 Fullscreen 2 Font 24/Smallcaps Map View 76x50 Tactical HUD 1 Map Filters NONE Filters NONE Steam 1 RUN: 3bdff801-f715-47d7-8a43-82a3e3647902